Body,Body name,Date,Transaction number,Amount,Supplier name,Supplier ID,Expense area,Fund type,Expense type
http://www.ons.gov.uk/ons/guide-method/geography/products/names--codes-and-look-ups/names-and-codes-listings/names-and-codes-for-administrative-geography/index.html,Thanet District Council,02/05/2013,336561,600.00,Abate Services,ABA005,Director of Corporate Services and Transformation,Balance Sheet,Current Assets
http://www.ons.gov.uk/ons/guide-method/geography/products/names--codes-and-look-ups/names-and-codes-listings/names-and-codes-for-administrative-geography/index.html,Thanet District Council,02/05/2013,337077,27313.57,D C L G,DCL002,Director of Corporate Services and Transformation,Balance Sheet,Reserves
http://www.ons.gov.uk/ons/guide-method/geography/products/names--codes-and-look-ups/names-and-codes-listings/names-and-codes-for-administrative-geography/index.html,Thanet District Council,02/05/2013,335573,388.25,Ideas Unlimited,IDE001,Director of Community Services,Revenue,Supplies And Services
http://www.ons.gov.uk/ons/guide-method/geography/products/names--codes-and-look-ups/names-and-codes-listings/names-and-codes-for-administrative-geography/index.html,Thanet District Council,02/05/2013,337060,3577.69,Idox Software  Limited,IDO001,Director of Community Services,Revenue,Supplies And Services
http://www.ons.gov.uk/ons/guide-method/geography/products/names--codes-and-look-ups/names-and-codes-listings/names-and-codes-for-administrative-geography/index.html,Thanet District Council,02/05/2013,337061,7958.41,Idox Software  Limited,IDO001,Director of Community Services,Revenue,Supplies And Services
http://www.ons.gov.uk/ons/guide-method/geography/products/names--codes-and-look-ups/names-and-codes-listings/names-and-codes-for-administrative-geography/index.html,Thanet District Council,02/05/2013,337062,403.61,Idox Software  Limited,IDO001,Director of Community Services,Revenue,Supplies And Services
http://www.ons.gov.uk/ons/guide-method/geography/products/names--codes-and-look-ups/names-and-codes-listings/names-and-codes-for-administrative-geography/index.html,Thanet District Council,02/05/2013,337063,2573.15,Idox Software  Limited,IDO001,Director of Community Services,Revenue,Supplies And Services
http://www.ons.gov.uk/ons/guide-method/geography/products/names--codes-and-look-ups/names-and-codes-listings/names-and-codes-for-administrative-geography/index.html,Thanet District Council,02/05/2013,337064,7458.02,Idox Software  Limited,IDO001,Director of Corporate Services and Transformation,Revenue,Supplies And Services
http://www.ons.gov.uk/ons/guide-method/geography/products/names--codes-and-look-ups/names-and-codes-listings/names-and-codes-for-administrative-geography/index.html,Thanet District Council,02/05/2013,337068,11484.19,Idox Software  Limited,IDO001,Director of Community Services,Revenue,Supplies And Services
http://www.ons.gov.uk/ons/guide-method/geography/products/names--codes-and-look-ups/names-and-codes-listings/names-and-codes-for-administrative-geography/index.html,Thanet District Council,02/05/2013,337074,2026.48,Idox Software  Limited,IDO001,Director of Community Services,Revenue,Supplies And Services
http://www.ons.gov.uk/ons/guide-method/geography/products/names--codes-and-look-ups/names-and-codes-listings/names-and-codes-for-administrative-geography/index.html,Thanet District Council,02/05/2013,335349,10000.00,Kent County Council,KCC002,Director of Community Services,Revenue,Supplies And Services
http://www.ons.gov.uk/ons/guide-method/geography/products/names--codes-and-look-ups/names-and-codes-listings/names-and-codes-for-administrative-geography/index.html,Thanet District Council,02/05/2013,335733,3268.00,Lexisnexis Uk,LEX002,Director of Corporate Services and Transformation,Revenue,Supplies And Services
http://www.ons.gov.uk/ons/guide-method/geography/products/names--codes-and-look-ups/names-and-codes-listings/names-and-codes-for-administrative-geography/index.html,Thanet District Council,02/05/2013,335734,2382.00,Lexisnexis Uk,LEX002,Director of Corporate Services and Transformation,Revenue,Supplies And Services
http://www.ons.gov.uk/ons/guide-method/geography/products/names--codes-and-look-ups/names-and-codes-listings/names-and-codes-for-administrative-geography/index.html,Thanet District Council,02/05/2013,335008,416.70,Probrand Ltd,PRO012,Director of Corporate Services and Transformation,Revenue,Supplies And Services
http://www.ons.gov.uk/ons/guide-method/geography/products/names--codes-and-look-ups/names-and-codes-listings/names-and-codes-for-administrative-geography/index.html,Thanet District Council,02/05/2013,337078,15000.00,The Dreamland Trust,DRE003,Director of Corporate Services and Transformation,Balance Sheet,Long Term Assets
http://www.ons.gov.uk/ons/guide-method/geography/products/names--codes-and-look-ups/names-and-codes-listings/names-and-codes-for-administrative-geography/index.html,Thanet District Council,02/05/2013,335025,4080.00,The Groundwork South Trust Limited,GRO021,Director of Operational Services,Revenue,Supplies And Services
http://www.ons.gov.uk/ons/guide-method/geography/products/names--codes-and-look-ups/names-and-codes-listings/names-and-codes-for-administrative-geography/index.html,Thanet District Council,02/05/2013,336122,-4080.00,The Groundwork South Trust Limited,GRO021,Director of Operational Services,Revenue,Supplies And Services
http://www.ons.gov.uk/ons/guide-method/geography/products/names--codes-and-look-ups/names-and-codes-listings/names-and-codes-for-administrative-geography/index.html,Thanet District Council,02/05/2013,337076,4080.00,The Groundwork South Trust Limited,GRO021,Director of Operational Services,Revenue,Supplies And Services
http://www.ons.gov.uk/ons/guide-method/geography/products/names--codes-and-look-ups/names-and-codes-listings/names-and-codes-for-administrative-geography/index.html,Thanet District Council,02/05/2013,335719,475.00,Ultra Electronics Aep Payments Ltd,ULT005,Director of Corporate Services and Transformation,Revenue,Supplies And Services
http://www.ons.gov.uk/ons/guide-method/geography/products/names--codes-and-look-ups/names-and-codes-listings/names-and-codes-for-administrative-geography/index.html,Thanet District Council,02/05/2013,336517,1100.00,Visit Kent Ltd,VIS005,Director of Community Services,Revenue,Supplies And Services
http://www.ons.gov.uk/ons/guide-method/geography/products/names--codes-and-look-ups/names-and-codes-listings/names-and-codes-for-administrative-geography/index.html,Thanet District Council,02/05/2013,337067,262.80,Zen Internet Ltd,ZEN001,East Kent Shared Services,Revenue,Supplies And Services
http://www.ons.gov.uk/ons/guide-method/geography/products/names--codes-and-look-ups/names-and-codes-listings/names-and-codes-for-administrative-geography/index.html,Thanet District Council,08/05/2013,336401,750.00,A& C Pumps Ltd,ACP001,Director of Operational Services,Revenue,Premises Related Expenditure
http://www.ons.gov.uk/ons/guide-method/geography/products/names--codes-and-look-ups/names-and-codes-listings/names-and-codes-for-administrative-geography/index.html,Thanet District Council,08/05/2013,336829,604.95,Adecco Uk Ltd,ADE005,Director of Corporate Services and Transformation,Revenue,Employees
http://www.ons.gov.uk/ons/guide-method/geography/products/names--codes-and-look-ups/names-and-codes-listings/names-and-codes-for-administrative-geography/index.html,Thanet District Council,08/05/2013,336830,482.33,Adecco Uk Ltd,ADE005,Director of Corporate Services and Transformation,Revenue,Employees
http://www.ons.gov.uk/ons/guide-method/geography/products/names--codes-and-look-ups/names-and-codes-listings/names-and-codes-for-administrative-geography/index.html,Thanet District Council,08/05/2013,336831,490.50,Adecco Uk Ltd,ADE005,Director of Corporate Services and Transformation,Revenue,Employees
http://www.ons.gov.uk/ons/guide-method/geography/products/names--codes-and-look-ups/names-and-codes-listings/names-and-codes-for-administrative-geography/index.html,Thanet District Council,08/05/2013,335765,1895.00,All Sign Solutions Ltd,ALL002,Director of Community Services,Revenue,Supplies And Services
http://www.ons.gov.uk/ons/guide-method/geography/products/names--codes-and-look-ups/names-and-codes-listings/names-and-codes-for-administrative-geography/index.html,Thanet District Council,08/05/2013,337198,312.97,Allstar Business Solutions Ltd,ALL038,Director of Operational Services,Revenue,Transport Related Expenditure
http://www.ons.gov.uk/ons/guide-method/geography/products/names--codes-and-look-ups/names-and-codes-listings/names-and-codes-for-administrative-geography/index.html,Thanet District Council,08/05/2013,337376,301.63,Allstar Business Solutions Ltd,ALL038,Director of Operational Services,Revenue,Transport Related Expenditure
http://www.ons.gov.uk/ons/guide-method/geography/products/names--codes-and-look-ups/names-and-codes-listings/names-and-codes-for-administrative-geography/index.html,Thanet District Council,08/05/2013,336126,2475.00,Amber Driver Training,AMB004,Director of Operational Services,Revenue,Employees
http://www.ons.gov.uk/ons/guide-method/geography/products/names--codes-and-look-ups/names-and-codes-listings/names-and-codes-for-administrative-geography/index.html,Thanet District Council,08/05/2013,337152,1715.00,Ascendit Lifts Ltd,ASC001,Director of Corporate Services and Transformation,Balance Sheet,Long Term Assets
http://www.ons.gov.uk/ons/guide-method/geography/products/names--codes-and-look-ups/names-and-codes-listings/names-and-codes-for-administrative-geography/index.html,Thanet District Council,08/05/2013,336907,690.00,Ashdown Supplies,ASH009,Director of Operational Services,Revenue,Supplies And Services
http://www.ons.gov.uk/ons/guide-method/geography/products/names--codes-and-look-ups/names-and-codes-listings/names-and-codes-for-administrative-geography/index.html,Thanet District Council,08/05/2013,336533,250.00,Assettrac Ltd,ASS012,Director of Operational Services,Revenue,Premises Related Expenditure
http://www.ons.gov.uk/ons/guide-method/geography/products/names--codes-and-look-ups/names-and-codes-listings/names-and-codes-for-administrative-geography/index.html,Thanet District Council,08/05/2013,337043,1250.00,Belinda Dixon Media Limited,DIX006,Director of Community Services,Revenue,Supplies And Services
http://www.ons.gov.uk/ons/guide-method/geography/products/names--codes-and-look-ups/names-and-codes-listings/names-and-codes-for-administrative-geography/index.html,Thanet District Council,08/05/2013,337266,4557.68,Better Beaches Ltd,BET009,Director of Operational Services,Revenue,Supplies And Services
http://www.ons.gov.uk/ons/guide-method/geography/products/names--codes-and-look-ups/names-and-codes-listings/names-and-codes-for-administrative-geography/index.html,Thanet District Council,08/05/2013,336254,9891.54,Bpi Recycled Products,BPI002,Director of Operational Services,Revenue,Supplies And Services
http://www.ons.gov.uk/ons/guide-method/geography/products/names--codes-and-look-ups/names-and-codes-listings/names-and-codes-for-administrative-geography/index.html,Thanet District Council,08/05/2013,337145,7420.00,Bramling Construction Ltd,BRA020,Director of Corporate Services and Transformation,Balance Sheet,Long Term Assets
http://www.ons.gov.uk/ons/guide-method/geography/products/names--codes-and-look-ups/names-and-codes-listings/names-and-codes-for-administrative-geography/index.html,Thanet District Council,08/05/2013,337149,6420.00,Bramling Construction Ltd,BRA020,Director of Corporate Services and Transformation,Balance Sheet,Long Term Assets
http://www.ons.gov.uk/ons/guide-method/geography/products/names--codes-and-look-ups/names-and-codes-listings/names-and-codes-for-administrative-geography/index.html,Thanet District Council,08/05/2013,336668,6475.00,Broxap Limited,BRO052,Director of Corporate Services and Transformation,Balance Sheet,Long Term Assets
http://www.ons.gov.uk/ons/guide-method/geography/products/names--codes-and-look-ups/names-and-codes-listings/names-and-codes-for-administrative-geography/index.html,Thanet District Council,08/05/2013,337338,102.60,C & S News,CSN001,Chief Executive and S151,Revenue,Supplies And Services
http://www.ons.gov.uk/ons/guide-method/geography/products/names--codes-and-look-ups/names-and-codes-listings/names-and-codes-for-administrative-geography/index.html,Thanet District Council,08/05/2013,337338,205.20,C & S News,CSN001,Director of Corporate Services and Transformation,Revenue,Supplies And Services
http://www.ons.gov.uk/ons/guide-method/geography/products/names--codes-and-look-ups/names-and-codes-listings/names-and-codes-for-administrative-geography/index.html,Thanet District Council,08/05/2013,337338,307.80,C & S News,CSN001,Director of Community Services,Revenue,Supplies And Services
http://www.ons.gov.uk/ons/guide-method/geography/products/names--codes-and-look-ups/names-and-codes-listings/names-and-codes-for-administrative-geography/index.html,Thanet District Council,08/05/2013,337338,102.60,C & S News,CSN001,Director of Operational Services,Revenue,Supplies And Services
http://www.ons.gov.uk/ons/guide-method/geography/products/names--codes-and-look-ups/names-and-codes-listings/names-and-codes-for-administrative-geography/index.html,Thanet District Council,08/05/2013,337339,438.20,C & S News,CSN001,Director of Corporate Services and Transformation,Revenue,Supplies And Services
http://www.ons.gov.uk/ons/guide-method/geography/products/names--codes-and-look-ups/names-and-codes-listings/names-and-codes-for-administrative-geography/index.html,Thanet District Council,08/05/2013,337032,2320.99,Canterbury City Council,CAN004,East Kent Shared Services,Revenue,Supplies And Services
http://www.ons.gov.uk/ons/guide-method/geography/products/names--codes-and-look-ups/names-and-codes-listings/names-and-codes-for-administrative-geography/index.html,Thanet District Council,08/05/2013,337033,1300.00,Canterbury City Council,CAN004,East Kent Shared Services,Revenue,Supplies And Services
http://www.ons.gov.uk/ons/guide-method/geography/products/names--codes-and-look-ups/names-and-codes-listings/names-and-codes-for-administrative-geography/index.html,Thanet District Council,08/05/2013,336640,37842.34,Civica Uk Ltd,CIV003,Director of Corporate Services and Transformation,Revenue,Supplies And Services
http://www.ons.gov.uk/ons/guide-method/geography/products/names--codes-and-look-ups/names-and-codes-listings/names-and-codes-for-administrative-geography/index.html,Thanet District Council,08/05/2013,336387,234.38,Computerland Uk Limited,COM045,East Kent Shared Services,Revenue,Supplies And Services
http://www.ons.gov.uk/ons/guide-method/geography/products/names--codes-and-look-ups/names-and-codes-listings/names-and-codes-for-administrative-geography/index.html,Thanet District Council,08/05/2013,336703,234.38,Computerland Uk Limited,COM045,East Kent Shared Services,Revenue,Supplies And Services
http://www.ons.gov.uk/ons/guide-method/geography/products/names--codes-and-look-ups/names-and-codes-listings/names-and-codes-for-administrative-geography/index.html,Thanet District Council,08/05/2013,336540,394.00,D J Invicta Supplies Ltd,DJI001,Director of Operational Services,Revenue,Premises Related Expenditure
http://www.ons.gov.uk/ons/guide-method/geography/products/names--codes-and-look-ups/names-and-codes-listings/names-and-codes-for-administrative-geography/index.html,Thanet District Council,08/05/2013,336542,226.50,D J Invicta Supplies Ltd,DJI001,Director of Operational Services,Revenue,Premises Related Expenditure
http://www.ons.gov.uk/ons/guide-method/geography/products/names--codes-and-look-ups/names-and-codes-listings/names-and-codes-for-administrative-geography/index.html,Thanet District Council,08/05/2013,336689,476.00,Daniels Healthcare Limited,DAN014,Director of Operational Services,Revenue,Third Party Payments
http://www.ons.gov.uk/ons/guide-method/geography/products/names--codes-and-look-ups/names-and-codes-listings/names-and-codes-for-administrative-geography/index.html,Thanet District Council,08/05/2013,337211,1650.00,Dawsonrentals Sweepers,DAW003,Director of Operational Services,Revenue,Transport Related Expenditure
http://www.ons.gov.uk/ons/guide-method/geography/products/names--codes-and-look-ups/names-and-codes-listings/names-and-codes-for-administrative-geography/index.html,Thanet District Council,08/05/2013,336112,274.28,Dennis Eagle Ltd,DEN005,Director of Operational Services,Revenue,Transport Related Expenditure
http://www.ons.gov.uk/ons/guide-method/geography/products/names--codes-and-look-ups/names-and-codes-listings/names-and-codes-for-administrative-geography/index.html,Thanet District Council,08/05/2013,336331,513.32,Dennis Eagle Ltd,DEN005,Director of Operational Services,Revenue,Transport Related Expenditure
http://www.ons.gov.uk/ons/guide-method/geography/products/names--codes-and-look-ups/names-and-codes-listings/names-and-codes-for-administrative-geography/index.html,Thanet District Council,08/05/2013,336360,390.34,Dennis Eagle Ltd,DEN005,Director of Operational Services,Revenue,Transport Related Expenditure
http://www.ons.gov.uk/ons/guide-method/geography/products/names--codes-and-look-ups/names-and-codes-listings/names-and-codes-for-administrative-geography/index.html,Thanet District Council,08/05/2013,336903,545.20,Dennis Eagle Ltd,DEN005,Director of Operational Services,Revenue,Transport Related Expenditure
http://www.ons.gov.uk/ons/guide-method/geography/products/names--codes-and-look-ups/names-and-codes-listings/names-and-codes-for-administrative-geography/index.html,Thanet District Council,08/05/2013,336904,241.50,Dennis Eagle Ltd,DEN005,Director of Operational Services,Revenue,Transport Related Expenditure
http://www.ons.gov.uk/ons/guide-method/geography/products/names--codes-and-look-ups/names-and-codes-listings/names-and-codes-for-administrative-geography/index.html,Thanet District Council,08/05/2013,337189,3800.00,Dolphin Lifts Kent,DOL003,Director of Corporate Services and Transformation,Balance Sheet,Long Term Assets
http://www.ons.gov.uk/ons/guide-method/geography/products/names--codes-and-look-ups/names-and-codes-listings/names-and-codes-for-administrative-geography/index.html,Thanet District Council,08/05/2013,336351,25723.80,Dover District Council,DOV001,East Kent Shared Services,Revenue,Supplies And Services
http://www.ons.gov.uk/ons/guide-method/geography/products/names--codes-and-look-ups/names-and-codes-listings/names-and-codes-for-administrative-geography/index.html,Thanet District Council,08/05/2013,337036,1050.00,Dr Alexander Marshall,MAR100,Director of Operational Services,Revenue,Supplies And Services
http://www.ons.gov.uk/ons/guide-method/geography/products/names--codes-and-look-ups/names-and-codes-listings/names-and-codes-for-administrative-geography/index.html,Thanet District Council,08/05/2013,336399,1487.25,E Saunders Margate Ltd,SAU001,Director of Operational Services,Revenue,Premises Related Expenditure
http://www.ons.gov.uk/ons/guide-method/geography/products/names--codes-and-look-ups/names-and-codes-listings/names-and-codes-for-administrative-geography/index.html,Thanet District Council,08/05/2013,336349,397.20,Eagle Envelopes Ltd,EAG001,East Kent Shared Services,Revenue,Supplies And Services
http://www.ons.gov.uk/ons/guide-method/geography/products/names--codes-and-look-ups/names-and-codes-listings/names-and-codes-for-administrative-geography/index.html,Thanet District Council,08/05/2013,337041,2420.00,Environment Agency,ENV001,Director of Operational Services,Revenue,Supplies And Services
http://www.ons.gov.uk/ons/guide-method/geography/products/names--codes-and-look-ups/names-and-codes-listings/names-and-codes-for-administrative-geography/index.html,Thanet District Council,08/05/2013,337147,415.20,Family Mosaic Housing,FAM001,Director of Corporate Services and Transformation,Balance Sheet,Long Term Assets
http://www.ons.gov.uk/ons/guide-method/geography/products/names--codes-and-look-ups/names-and-codes-listings/names-and-codes-for-administrative-geography/index.html,Thanet District Council,08/05/2013,337154,257.67,Family Mosaic Housing,FAM001,Director of Corporate Services and Transformation,Balance Sheet,Long Term Assets
http://www.ons.gov.uk/ons/guide-method/geography/products/names--codes-and-look-ups/names-and-codes-listings/names-and-codes-for-administrative-geography/index.html,Thanet District Council,08/05/2013,337183,1000.00,Family Mosaic Housing,FAM001,Director of Corporate Services and Transformation,Balance Sheet,Long Term Assets
http://www.ons.gov.uk/ons/guide-method/geography/products/names--codes-and-look-ups/names-and-codes-listings/names-and-codes-for-administrative-geography/index.html,Thanet District Council,08/05/2013,336920,230.00,Freeflow Limited,FRE010,Director of Operational Services,Revenue,Premises Related Expenditure
http://www.ons.gov.uk/ons/guide-method/geography/products/names--codes-and-look-ups/names-and-codes-listings/names-and-codes-for-administrative-geography/index.html,Thanet District Council,08/05/2013,336921,500.00,Freeflow Limited,FRE010,Director of Operational Services,Revenue,Premises Related Expenditure
http://www.ons.gov.uk/ons/guide-method/geography/products/names--codes-and-look-ups/names-and-codes-listings/names-and-codes-for-administrative-geography/index.html,Thanet District Council,08/05/2013,336833,4773.32,Fuel Oils Kent,FUE001,Director of Operational Services,Revenue,Supplies And Services
http://www.ons.gov.uk/ons/guide-method/geography/products/names--codes-and-look-ups/names-and-codes-listings/names-and-codes-for-administrative-geography/index.html,Thanet District Council,08/05/2013,336662,234.23,G & G Forklifts,GGF001,Director of Operational Services,Revenue,Supplies And Services
http://www.ons.gov.uk/ons/guide-method/geography/products/names--codes-and-look-ups/names-and-codes-listings/names-and-codes-for-administrative-geography/index.html,Thanet District Council,08/05/2013,336692,479.48,Gb Sport & Leisure Uk Ltd,GBS002,Director of Operational Services,Revenue,Premises Related Expenditure
http://www.ons.gov.uk/ons/guide-method/geography/products/names--codes-and-look-ups/names-and-codes-listings/names-and-codes-for-administrative-geography/index.html,Thanet District Council,08/05/2013,336283,3870.00,Glasdon Uk Ltd,GLA001,Director of Operational Services,Revenue,Supplies And Services
http://www.ons.gov.uk/ons/guide-method/geography/products/names--codes-and-look-ups/names-and-codes-listings/names-and-codes-for-administrative-geography/index.html,Thanet District Council,08/05/2013,337072,2690.00,Haymarket Media Group Ltd,HAY018,Director of Community Services,Revenue,Supplies And Services
http://www.ons.gov.uk/ons/guide-method/geography/products/names--codes-and-look-ups/names-and-codes-listings/names-and-codes-for-administrative-geography/index.html,Thanet District Council,08/05/2013,336854,853.55,Hi Way Services Ltd,HIW002,Director of Operational Services,Revenue,Premises Related Expenditure
http://www.ons.gov.uk/ons/guide-method/geography/products/names--codes-and-look-ups/names-and-codes-listings/names-and-codes-for-administrative-geography/index.html,Thanet District Council,08/05/2013,336405,499.50,Hr Go Recruitment Ltd,HRG002,Director of Operational Services,Revenue,Employees
http://www.ons.gov.uk/ons/guide-method/geography/products/names--codes-and-look-ups/names-and-codes-listings/names-and-codes-for-administrative-geography/index.html,Thanet District Council,08/05/2013,336411,3667.56,Hr Go Recruitment Ltd,HRG002,Director of Operational Services,Revenue,Employees
http://www.ons.gov.uk/ons/guide-method/geography/products/names--codes-and-look-ups/names-and-codes-listings/names-and-codes-for-administrative-geography/index.html,Thanet District Council,08/05/2013,336518,4270.02,Hr Go Recruitment Ltd,HRG002,Director of Operational Services,Revenue,Employees
http://www.ons.gov.uk/ons/guide-method/geography/products/names--codes-and-look-ups/names-and-codes-listings/names-and-codes-for-administrative-geography/index.html,Thanet District Council,08/05/2013,336519,291.56,Hr Go Recruitment Ltd,HRG002,Director of Operational Services,Revenue,Employees
http://www.ons.gov.uk/ons/guide-method/geography/products/names--codes-and-look-ups/names-and-codes-listings/names-and-codes-for-administrative-geography/index.html,Thanet District Council,08/05/2013,337048,3804.93,Hr Go Recruitment Ltd,HRG002,Director of Operational Services,Revenue,Employees
http://www.ons.gov.uk/ons/guide-method/geography/products/names--codes-and-look-ups/names-and-codes-listings/names-and-codes-for-administrative-geography/index.html,Thanet District Council,08/05/2013,337049,936.53,Hr Go Recruitment Ltd,HRG002,Director of Operational Services,Revenue,Employees
http://www.ons.gov.uk/ons/guide-method/geography/products/names--codes-and-look-ups/names-and-codes-listings/names-and-codes-for-administrative-geography/index.html,Thanet District Council,08/05/2013,337050,4320.77,Hr Go Recruitment Ltd,HRG002,Director of Operational Services,Revenue,Employees
http://www.ons.gov.uk/ons/guide-method/geography/products/names--codes-and-look-ups/names-and-codes-listings/names-and-codes-for-administrative-geography/index.html,Thanet District Council,08/05/2013,337051,291.56,Hr Go Recruitment Ltd,HRG002,Director of Operational Services,Revenue,Employees
http://www.ons.gov.uk/ons/guide-method/geography/products/names--codes-and-look-ups/names-and-codes-listings/names-and-codes-for-administrative-geography/index.html,Thanet District Council,08/05/2013,337052,499.50,Hr Go Recruitment Ltd,HRG002,Director of Operational Services,Revenue,Employees
http://www.ons.gov.uk/ons/guide-method/geography/products/names--codes-and-look-ups/names-and-codes-listings/names-and-codes-for-administrative-geography/index.html,Thanet District Council,08/05/2013,337330,712.27,Hr Go Recruitment Ltd,HRG002,Director of Operational Services,Revenue,Employees
http://www.ons.gov.uk/ons/guide-method/geography/products/names--codes-and-look-ups/names-and-codes-listings/names-and-codes-for-administrative-geography/index.html,Thanet District Council,08/05/2013,336670,788.94,Hydro-Cleansing Ltd,HYD012,Director of Operational Services,Revenue,Premises Related Expenditure
http://www.ons.gov.uk/ons/guide-method/geography/products/names--codes-and-look-ups/names-and-codes-listings/names-and-codes-for-administrative-geography/index.html,Thanet District Council,08/05/2013,336701,339.00,Hydrosphere Uk Limited,HYD009,Director of Operational Services,Revenue,Supplies And Services
http://www.ons.gov.uk/ons/guide-method/geography/products/names--codes-and-look-ups/names-and-codes-listings/names-and-codes-for-administrative-geography/index.html,Thanet District Council,08/05/2013,336408,314.30,I S & G Steel Stockholders Ltd,ISG001,Director of Operational Services,Revenue,Transport Related Expenditure
http://www.ons.gov.uk/ons/guide-method/geography/products/names--codes-and-look-ups/names-and-codes-listings/names-and-codes-for-administrative-geography/index.html,Thanet District Council,08/05/2013,337113,3168.95,Idox Software  Limited,IDO001,East Kent Shared Services,Revenue,Supplies And Services
http://www.ons.gov.uk/ons/guide-method/geography/products/names--codes-and-look-ups/names-and-codes-listings/names-and-codes-for-administrative-geography/index.html,Thanet District Council,08/05/2013,336918,1287.12,Insight Direct (Uk) Ltd,INS013,East Kent Shared Services,Revenue,Supplies And Services
http://www.ons.gov.uk/ons/guide-method/geography/products/names--codes-and-look-ups/names-and-codes-listings/names-and-codes-for-administrative-geography/index.html,Thanet District Council,08/05/2013,336919,434.02,Insight Direct (Uk) Ltd,INS013,East Kent Shared Services,Revenue,Supplies And Services
http://www.ons.gov.uk/ons/guide-method/geography/products/names--codes-and-look-ups/names-and-codes-listings/names-and-codes-for-administrative-geography/index.html,Thanet District Council,08/05/2013,336226,445.00,Institute Of Cemetery & Crem Mang,INS015,Director of Operational Services,Revenue,Supplies And Services
http://www.ons.gov.uk/ons/guide-method/geography/products/names--codes-and-look-ups/names-and-codes-listings/names-and-codes-for-administrative-geography/index.html,Thanet District Council,08/05/2013,336227,180.00,Institute Of Cemetery & Crem Mang,INS015,Director of Operational Services,Revenue,Supplies And Services
http://www.ons.gov.uk/ons/guide-method/geography/products/names--codes-and-look-ups/names-and-codes-listings/names-and-codes-for-administrative-geography/index.html,Thanet District Council,08/05/2013,336839,280.00,Invicta Solar Energy Ltd,INV014,Director of Community Services,Revenue,Supplies And Services
http://www.ons.gov.uk/ons/guide-method/geography/products/names--codes-and-look-ups/names-and-codes-listings/names-and-codes-for-administrative-geography/index.html,Thanet District Council,08/05/2013,336702,495.00,Irrv,IRR002,East Kent Shared Services,Revenue,Supplies And Services
http://www.ons.gov.uk/ons/guide-method/geography/products/names--codes-and-look-ups/names-and-codes-listings/names-and-codes-for-administrative-geography/index.html,Thanet District Council,08/05/2013,335905,470.00,Jay Holloway,HOL025,Director of Community Services,Revenue,Supplies And Services
http://www.ons.gov.uk/ons/guide-method/geography/products/names--codes-and-look-ups/names-and-codes-listings/names-and-codes-for-administrative-geography/index.html,Thanet District Council,08/05/2013,337143,938.00,Jlp Property Maintenance,JLP001,Director of Corporate Services and Transformation,Balance Sheet,Long Term Assets
http://www.ons.gov.uk/ons/guide-method/geography/products/names--codes-and-look-ups/names-and-codes-listings/names-and-codes-for-administrative-geography/index.html,Thanet District Council,08/05/2013,336871,1325.00,Kent County Council,KCC002,East Kent Shared Services,Revenue,Employees
http://www.ons.gov.uk/ons/guide-method/geography/products/names--codes-and-look-ups/names-and-codes-listings/names-and-codes-for-administrative-geography/index.html,Thanet District Council,08/05/2013,335885,5328.00,Kent County Council (Kcs),KCC003,Director of Operational Services,Revenue,Transport Related Expenditure
http://www.ons.gov.uk/ons/guide-method/geography/products/names--codes-and-look-ups/names-and-codes-listings/names-and-codes-for-administrative-geography/index.html,Thanet District Council,08/05/2013,336133,26178.87,Kent County Council (Kcs),KCC003,Director of Operational Services,Revenue,Transport Related Expenditure
http://www.ons.gov.uk/ons/guide-method/geography/products/names--codes-and-look-ups/names-and-codes-listings/names-and-codes-for-administrative-geography/index.html,Thanet District Council,08/05/2013,336870,33981.40,Kent County Council (Kcs),KCC003,Director of Operational Services,Revenue,Transport Related Expenditure
http://www.ons.gov.uk/ons/guide-method/geography/products/names--codes-and-look-ups/names-and-codes-listings/names-and-codes-for-administrative-geography/index.html,Thanet District Council,08/05/2013,337355,8295.28,Kent County Council (Kcs),KCC003,Director of Operational Services,Revenue,Transport Related Expenditure
http://www.ons.gov.uk/ons/guide-method/geography/products/names--codes-and-look-ups/names-and-codes-listings/names-and-codes-for-administrative-geography/index.html,Thanet District Council,08/05/2013,337155,2935.20,Kings Home Improvements,KIN023,Director of Corporate Services and Transformation,Balance Sheet,Long Term Assets
http://www.ons.gov.uk/ons/guide-method/geography/products/names--codes-and-look-ups/names-and-codes-listings/names-and-codes-for-administrative-geography/index.html,Thanet District Council,08/05/2013,337342,215.00,L G G Limited,LGG001,Director of Corporate Services and Transformation,Revenue,Supplies And Services
http://www.ons.gov.uk/ons/guide-method/geography/products/names--codes-and-look-ups/names-and-codes-listings/names-and-codes-for-administrative-geography/index.html,Thanet District Council,08/05/2013,336298,404.91,L W Burt & Son Ltd,BUR027,Director of Operational Services,Revenue,Premises Related Expenditure
http://www.ons.gov.uk/ons/guide-method/geography/products/names--codes-and-look-ups/names-and-codes-listings/names-and-codes-for-administrative-geography/index.html,Thanet District Council,08/05/2013,336299,967.57,L W Burt & Son Ltd,BUR027,Director of Operational Services,Revenue,Premises Related Expenditure
http://www.ons.gov.uk/ons/guide-method/geography/products/names--codes-and-look-ups/names-and-codes-listings/names-and-codes-for-administrative-geography/index.html,Thanet District Council,08/05/2013,336300,1638.89,L W Burt & Son Ltd,BUR027,Director of Operational Services,Revenue,Premises Related Expenditure
http://www.ons.gov.uk/ons/guide-method/geography/products/names--codes-and-look-ups/names-and-codes-listings/names-and-codes-for-administrative-geography/index.html,Thanet District Council,08/05/2013,336301,551.64,L W Burt & Son Ltd,BUR027,Director of Community Services,Revenue,Premises Related Expenditure
http://www.ons.gov.uk/ons/guide-method/geography/products/names--codes-and-look-ups/names-and-codes-listings/names-and-codes-for-administrative-geography/index.html,Thanet District Council,08/05/2013,336302,1029.00,L W Burt & Son Ltd,BUR027,Director of Operational Services,Revenue,Premises Related Expenditure
http://www.ons.gov.uk/ons/guide-method/geography/products/names--codes-and-look-ups/names-and-codes-listings/names-and-codes-for-administrative-geography/index.html,Thanet District Council,08/05/2013,336303,453.84,L W Burt & Son Ltd,BUR027,Director of Operational Services,Revenue,Premises Related Expenditure
http://www.ons.gov.uk/ons/guide-method/geography/products/names--codes-and-look-ups/names-and-codes-listings/names-and-codes-for-administrative-geography/index.html,Thanet District Council,08/05/2013,336304,417.16,L W Burt & Son Ltd,BUR027,Director of Community Services,Revenue,Premises Related Expenditure
http://www.ons.gov.uk/ons/guide-method/geography/products/names--codes-and-look-ups/names-and-codes-listings/names-and-codes-for-administrative-geography/index.html,Thanet District Council,08/05/2013,336305,307.06,L W Burt & Son Ltd,BUR027,Director of Operational Services,Revenue,Premises Related Expenditure
http://www.ons.gov.uk/ons/guide-method/geography/products/names--codes-and-look-ups/names-and-codes-listings/names-and-codes-for-administrative-geography/index.html,Thanet District Council,08/05/2013,336306,526.86,L W Burt & Son Ltd,BUR027,Director of Operational Services,Revenue,Premises Related Expenditure
http://www.ons.gov.uk/ons/guide-method/geography/products/names--codes-and-look-ups/names-and-codes-listings/names-and-codes-for-administrative-geography/index.html,Thanet District Council,08/05/2013,336666,847.55,Lcp Engineering Co Ltd,LCP001,Director of Operational Services,Revenue,Supplies And Services
http://www.ons.gov.uk/ons/guide-method/geography/products/names--codes-and-look-ups/names-and-codes-listings/names-and-codes-for-administrative-geography/index.html,Thanet District Council,08/05/2013,336755,660.00,Lednor Construction Limited,LED003,Director of Operational Services,Revenue,Premises Related Expenditure
http://www.ons.gov.uk/ons/guide-method/geography/products/names--codes-and-look-ups/names-and-codes-listings/names-and-codes-for-administrative-geography/index.html,Thanet District Council,08/05/2013,337267,780.00,Lydia Slee,SLE001,Director of Community Services,Revenue,Supplies And Services
http://www.ons.gov.uk/ons/guide-method/geography/products/names--codes-and-look-ups/names-and-codes-listings/names-and-codes-for-administrative-geography/index.html,Thanet District Council,08/05/2013,336384,1356.00,Maxwells Grounds Maintenance Ltd,MAX002,Director of Corporate Services and Transformation,Balance Sheet,Long Term Assets
http://www.ons.gov.uk/ons/guide-method/geography/products/names--codes-and-look-ups/names-and-codes-listings/names-and-codes-for-administrative-geography/index.html,Thanet District Council,08/05/2013,336372,1463.00,Michael Page Finance,PAG008,Director of Corporate Services and Transformation,Revenue,Employees
http://www.ons.gov.uk/ons/guide-method/geography/products/names--codes-and-look-ups/names-and-codes-listings/names-and-codes-for-administrative-geography/index.html,Thanet District Council,08/05/2013,336646,817.00,Michael Page Finance,PAG008,Director of Corporate Services and Transformation,Revenue,Employees
http://www.ons.gov.uk/ons/guide-method/geography/products/names--codes-and-look-ups/names-and-codes-listings/names-and-codes-for-administrative-geography/index.html,Thanet District Council,08/05/2013,336646,1140.00,Michael Page Finance,PAG008,Director of Operational Services,Revenue,Employees
http://www.ons.gov.uk/ons/guide-method/geography/products/names--codes-and-look-ups/names-and-codes-listings/names-and-codes-for-administrative-geography/index.html,Thanet District Council,08/05/2013,337073,1197.00,Michael Page Finance,PAG008,Director of Corporate Services and Transformation,Revenue,Employees
http://www.ons.gov.uk/ons/guide-method/geography/products/names--codes-and-look-ups/names-and-codes-listings/names-and-codes-for-administrative-geography/index.html,Thanet District Council,08/05/2013,336691,333.00,Michelle Williams,WIL064,Director of Community Services,Revenue,Supplies And Services
http://www.ons.gov.uk/ons/guide-method/geography/products/names--codes-and-look-ups/names-and-codes-listings/names-and-codes-for-administrative-geography/index.html,Thanet District Council,08/05/2013,336879,1037.53,Morgan Jones Ltd,MOR001,East Kent Shared Services,Revenue,Employees
http://www.ons.gov.uk/ons/guide-method/geography/products/names--codes-and-look-ups/names-and-codes-listings/names-and-codes-for-administrative-geography/index.html,Thanet District Council,08/05/2013,336881,543.38,Morgan Jones Ltd,MOR001,Director of Corporate Services and Transformation,Revenue,Employees
http://www.ons.gov.uk/ons/guide-method/geography/products/names--codes-and-look-ups/names-and-codes-listings/names-and-codes-for-administrative-geography/index.html,Thanet District Council,08/05/2013,337264,4362.75,National Express Ltd,NAT010,Director of Community Services,Revenue,Supplies And Services
http://www.ons.gov.uk/ons/guide-method/geography/products/names--codes-and-look-ups/names-and-codes-listings/names-and-codes-for-administrative-geography/index.html,Thanet District Council,08/05/2013,336665,3228.75,New Tech Security Ltd,NEW027,Director of Operational Services,Revenue,Premises Related Expenditure
http://www.ons.gov.uk/ons/guide-method/geography/products/names--codes-and-look-ups/names-and-codes-listings/names-and-codes-for-administrative-geography/index.html,Thanet District Council,08/05/2013,336404,200.00,Nomix Enviro,NOM003,Director of Corporate Services and Transformation,Balance Sheet,Long Term Assets
http://www.ons.gov.uk/ons/guide-method/geography/products/names--codes-and-look-ups/names-and-codes-listings/names-and-codes-for-administrative-geography/index.html,Thanet District Council,08/05/2013,336404,10.00,Nomix Enviro,NOM003,Director of Operational Services,Revenue,Supplies And Services
http://www.ons.gov.uk/ons/guide-method/geography/products/names--codes-and-look-ups/names-and-codes-listings/names-and-codes-for-administrative-geography/index.html,Thanet District Council,08/05/2013,336352,1500.00,Northgate Inf Solutions Uk Ltd,NOR018,East Kent Shared Services,Revenue,Supplies And Services
http://www.ons.gov.uk/ons/guide-method/geography/products/names--codes-and-look-ups/names-and-codes-listings/names-and-codes-for-administrative-geography/index.html,Thanet District Council,08/05/2013,336379,539.51,Northgate Inf Solutions Uk Ltd,NOR018,Director of Corporate Services and Transformation,Revenue,Supplies And Services
http://www.ons.gov.uk/ons/guide-method/geography/products/names--codes-and-look-ups/names-and-codes-listings/names-and-codes-for-administrative-geography/index.html,Thanet District Council,08/05/2013,336863,390.24,O2 (Uk) Ltd,O2U001,Director of Operational Services,Revenue,Supplies And Services
http://www.ons.gov.uk/ons/guide-method/geography/products/names--codes-and-look-ups/names-and-codes-listings/names-and-codes-for-administrative-geography/index.html,Thanet District Council,08/05/2013,336325,670.48,Ocs Group Uk Ltd T/A Fountains,OCS005,Director of Operational Services,Revenue,Premises Related Expenditure
http://www.ons.gov.uk/ons/guide-method/geography/products/names--codes-and-look-ups/names-and-codes-listings/names-and-codes-for-administrative-geography/index.html,Thanet District Council,08/05/2013,336326,456.54,Ocs Group Uk Ltd T/A Fountains,OCS005,Director of Operational Services,Revenue,Premises Related Expenditure
http://www.ons.gov.uk/ons/guide-method/geography/products/names--codes-and-look-ups/names-and-codes-listings/names-and-codes-for-administrative-geography/index.html,Thanet District Council,08/05/2013,336532,1080.00,P Lawrence & Son,LAW001,Director of Operational Services,Revenue,Premises Related Expenditure
http://www.ons.gov.uk/ons/guide-method/geography/products/names--codes-and-look-ups/names-and-codes-listings/names-and-codes-for-administrative-geography/index.html,Thanet District Council,08/05/2013,337345,695.00,Pdp Companies Ltd,PDP001,Director of Corporate Services and Transformation,Revenue,Supplies And Services
http://www.ons.gov.uk/ons/guide-method/geography/products/names--codes-and-look-ups/names-and-codes-listings/names-and-codes-for-administrative-geography/index.html,Thanet District Council,08/05/2013,336695,322.21,Phoenix Software Ltd,PHO002,Director of Corporate Services and Transformation,Revenue,Supplies And Services
http://www.ons.gov.uk/ons/guide-method/geography/products/names--codes-and-look-ups/names-and-codes-listings/names-and-codes-for-administrative-geography/index.html,Thanet District Council,08/05/2013,337045,562.68,Precept Cs Ltd,PRE032,Director of Corporate Services and Transformation,Balance Sheet,Long Term Assets
http://www.ons.gov.uk/ons/guide-method/geography/products/names--codes-and-look-ups/names-and-codes-listings/names-and-codes-for-administrative-geography/index.html,Thanet District Council,08/05/2013,337157,703.50,Precept Cs Ltd,PRE032,Director of Corporate Services and Transformation,Balance Sheet,Long Term Assets
http://www.ons.gov.uk/ons/guide-method/geography/products/names--codes-and-look-ups/names-and-codes-listings/names-and-codes-for-administrative-geography/index.html,Thanet District Council,08/05/2013,337163,841.91,Precept Cs Ltd,PRE032,Director of Corporate Services and Transformation,Balance Sheet,Long Term Assets
http://www.ons.gov.uk/ons/guide-method/geography/products/names--codes-and-look-ups/names-and-codes-listings/names-and-codes-for-administrative-geography/index.html,Thanet District Council,08/05/2013,336333,389.30,Probrand Ltd,PRO012,East Kent Shared Services,Revenue,Supplies And Services
http://www.ons.gov.uk/ons/guide-method/geography/products/names--codes-and-look-ups/names-and-codes-listings/names-and-codes-for-administrative-geography/index.html,Thanet District Council,08/05/2013,336675,2327.88,Probrand Ltd,PRO012,Director of Corporate Services and Transformation,Revenue,Supplies And Services
http://www.ons.gov.uk/ons/guide-method/geography/products/names--codes-and-look-ups/names-and-codes-listings/names-and-codes-for-administrative-geography/index.html,Thanet District Council,08/05/2013,336671,270.00,R J Broadley Tree Surgery,RJB002,Director of Operational Services,Revenue,Premises Related Expenditure
http://www.ons.gov.uk/ons/guide-method/geography/products/names--codes-and-look-ups/names-and-codes-listings/names-and-codes-for-administrative-geography/index.html,Thanet District Council,08/05/2013,336672,270.00,R J Broadley Tree Surgery,RJB002,Director of Operational Services,Revenue,Premises Related Expenditure
http://www.ons.gov.uk/ons/guide-method/geography/products/names--codes-and-look-ups/names-and-codes-listings/names-and-codes-for-administrative-geography/index.html,Thanet District Council,08/05/2013,336828,370.00,R J Broadley Tree Surgery,RJB002,Director of Operational Services,Revenue,Premises Related Expenditure
http://www.ons.gov.uk/ons/guide-method/geography/products/names--codes-and-look-ups/names-and-codes-listings/names-and-codes-for-administrative-geography/index.html,Thanet District Council,08/05/2013,336406,1043.97,Sba Ltd,SBA001,Director of Operational Services,Revenue,Supplies And Services
http://www.ons.gov.uk/ons/guide-method/geography/products/names--codes-and-look-ups/names-and-codes-listings/names-and-codes-for-administrative-geography/index.html,Thanet District Council,08/05/2013,336678,350.00,Shaw Electrical,SHA005,Director of Operational Services,Revenue,Premises Related Expenditure
http://www.ons.gov.uk/ons/guide-method/geography/products/names--codes-and-look-ups/names-and-codes-listings/names-and-codes-for-administrative-geography/index.html,Thanet District Council,08/05/2013,336679,350.00,Shaw Electrical,SHA005,Director of Operational Services,Revenue,Premises Related Expenditure
http://www.ons.gov.uk/ons/guide-method/geography/products/names--codes-and-look-ups/names-and-codes-listings/names-and-codes-for-administrative-geography/index.html,Thanet District Council,08/05/2013,337069,241.67,Shepherd Neame,SHE004,Director of Community Services,Revenue,Premises Related Expenditure
http://www.ons.gov.uk/ons/guide-method/geography/products/names--codes-and-look-ups/names-and-codes-listings/names-and-codes-for-administrative-geography/index.html,Thanet District Council,08/05/2013,336656,1014.00,Silgo Lubricants Ltd,SIL007,Director of Operational Services,Revenue,Transport Related Expenditure
http://www.ons.gov.uk/ons/guide-method/geography/products/names--codes-and-look-ups/names-and-codes-listings/names-and-codes-for-administrative-geography/index.html,Thanet District Council,08/05/2013,337146,8980.00,South East Building Company Limited,SEB001,Director of Corporate Services and Transformation,Balance Sheet,Long Term Assets
http://www.ons.gov.uk/ons/guide-method/geography/products/names--codes-and-look-ups/names-and-codes-listings/names-and-codes-for-administrative-geography/index.html,Thanet District Council,08/05/2013,337150,3180.00,South East Building Company Limited,SEB001,Director of Corporate Services and Transformation,Balance Sheet,Long Term Assets
http://www.ons.gov.uk/ons/guide-method/geography/products/names--codes-and-look-ups/names-and-codes-listings/names-and-codes-for-administrative-geography/index.html,Thanet District Council,08/05/2013,335587,-550.00,South East Employers,SEE001,Director of Corporate Services and Transformation,Revenue,Employees
http://www.ons.gov.uk/ons/guide-method/geography/products/names--codes-and-look-ups/names-and-codes-listings/names-and-codes-for-administrative-geography/index.html,Thanet District Council,08/05/2013,337367,5453.17,South East Employers,SEE001,Director of Corporate Services and Transformation,Revenue,Supplies And Services
http://www.ons.gov.uk/ons/guide-method/geography/products/names--codes-and-look-ups/names-and-codes-listings/names-and-codes-for-administrative-geography/index.html,Thanet District Council,08/05/2013,337185,5300.00,South East Wetrooms Limited,SEW002,Director of Corporate Services and Transformation,Balance Sheet,Long Term Assets
http://www.ons.gov.uk/ons/guide-method/geography/products/names--codes-and-look-ups/names-and-codes-listings/names-and-codes-for-administrative-geography/index.html,Thanet District Council,08/05/2013,336694,381.90,Sparshatts Of Kent Ltd,SPA008,Director of Operational Services,Revenue,Transport Related Expenditure
http://www.ons.gov.uk/ons/guide-method/geography/products/names--codes-and-look-ups/names-and-codes-listings/names-and-codes-for-administrative-geography/index.html,Thanet District Council,08/05/2013,336924,327.24,Sparshatts Of Kent Ltd,SPA008,Director of Operational Services,Revenue,Transport Related Expenditure
http://www.ons.gov.uk/ons/guide-method/geography/products/names--codes-and-look-ups/names-and-codes-listings/names-and-codes-for-administrative-geography/index.html,Thanet District Council,08/05/2013,336902,1207.00,Ssl247 Ltd,SSL001,East Kent Shared Services,Revenue,Supplies And Services
http://www.ons.gov.uk/ons/guide-method/geography/products/names--codes-and-look-ups/names-and-codes-listings/names-and-codes-for-administrative-geography/index.html,Thanet District Council,08/05/2013,336651,4266.00,Straight Plc,STR021,Director of Corporate Services and Transformation,Balance Sheet,Long Term Assets
http://www.ons.gov.uk/ons/guide-method/geography/products/names--codes-and-look-ups/names-and-codes-listings/names-and-codes-for-administrative-geography/index.html,Thanet District Council,08/05/2013,336651,10050.00,Straight Plc,STR021,Director of Operational Services,Revenue,Supplies And Services
http://www.ons.gov.uk/ons/guide-method/geography/products/names--codes-and-look-ups/names-and-codes-listings/names-and-codes-for-administrative-geography/index.html,Thanet District Council,08/05/2013,336856,5688.00,Straight Plc,STR021,Director of Corporate Services and Transformation,Balance Sheet,Long Term Assets
http://www.ons.gov.uk/ons/guide-method/geography/products/names--codes-and-look-ups/names-and-codes-listings/names-and-codes-for-administrative-geography/index.html,Thanet District Council,08/05/2013,336652,2442.00,T Nielsen & Company Ltd,NIE001,Director of Operational Services,Revenue,Premises Related Expenditure
http://www.ons.gov.uk/ons/guide-method/geography/products/names--codes-and-look-ups/names-and-codes-listings/names-and-codes-for-administrative-geography/index.html,Thanet District Council,08/05/2013,336858,2102.08,The Grand Garage,GRA016,Director of Operational Services,Revenue,Supplies And Services
http://www.ons.gov.uk/ons/guide-method/geography/products/names--codes-and-look-ups/names-and-codes-listings/names-and-codes-for-administrative-geography/index.html,Thanet District Council,08/05/2013,337269,500.00,The Information Commissioner,INF005,Director of Corporate Services and Transformation,Revenue,Supplies And Services
http://www.ons.gov.uk/ons/guide-method/geography/products/names--codes-and-look-ups/names-and-codes-listings/names-and-codes-for-administrative-geography/index.html,Thanet District Council,08/05/2013,335902,5445.78,Visit Kent Ltd,VIS005,Director of Community Services,Revenue,Supplies And Services
http://www.ons.gov.uk/ons/guide-method/geography/products/names--codes-and-look-ups/names-and-codes-listings/names-and-codes-for-administrative-geography/index.html,Thanet District Council,08/05/2013,336909,775.32,Wasteparts Uk Ltd,WAS006,Director of Operational Services,Revenue,Transport Related Expenditure
http://www.ons.gov.uk/ons/guide-method/geography/products/names--codes-and-look-ups/names-and-codes-listings/names-and-codes-for-administrative-geography/index.html,Thanet District Council,08/05/2013,337161,10769.00,Wessex Lift Company Ltd,WES031,Director of Corporate Services and Transformation,Balance Sheet,Long Term Assets
http://www.ons.gov.uk/ons/guide-method/geography/products/names--codes-and-look-ups/names-and-codes-listings/names-and-codes-for-administrative-geography/index.html,Thanet District Council,08/05/2013,336111,1492.32,Westbury Industrial Supplies Ltd,WES042,Director of Operational Services,Revenue,Supplies And Services
http://www.ons.gov.uk/ons/guide-method/geography/products/names--codes-and-look-ups/names-and-codes-listings/names-and-codes-for-administrative-geography/index.html,Thanet District Council,08/05/2013,336912,-365.60,Xma Ltd,XMA001,East Kent Shared Services,Revenue,Supplies And Services
http://www.ons.gov.uk/ons/guide-method/geography/products/names--codes-and-look-ups/names-and-codes-listings/names-and-codes-for-administrative-geography/index.html,Thanet District Council,08/05/2013,337327,365.60,Xma Ltd,XMA001,East Kent Shared Services,Revenue,Supplies And Services
http://www.ons.gov.uk/ons/guide-method/geography/products/names--codes-and-look-ups/names-and-codes-listings/names-and-codes-for-administrative-geography/index.html,Thanet District Council,14/05/2013,337640,287.52,123 Send Ltd,123001,Director of Operational Services,Revenue,Supplies And Services
http://www.ons.gov.uk/ons/guide-method/geography/products/names--codes-and-look-ups/names-and-codes-listings/names-and-codes-for-administrative-geography/index.html,Thanet District Council,14/05/2013,337720,300.00,1st Margate St Johns Scout Group,1ST005,Director of Corporate Services and Transformation,Revenue,Premises Related Expenditure
http://www.ons.gov.uk/ons/guide-method/geography/products/names--codes-and-look-ups/names-and-codes-listings/names-and-codes-for-administrative-geography/index.html,Thanet District Council,14/05/2013,337353,604.95,Adecco Uk Ltd,ADE005,Director of Corporate Services and Transformation,Revenue,Employees
http://www.ons.gov.uk/ons/guide-method/geography/products/names--codes-and-look-ups/names-and-codes-listings/names-and-codes-for-administrative-geography/index.html,Thanet District Council,14/05/2013,337354,604.95,Adecco Uk Ltd,ADE005,Director of Corporate Services and Transformation,Revenue,Employees
http://www.ons.gov.uk/ons/guide-method/geography/products/names--codes-and-look-ups/names-and-codes-listings/names-and-codes-for-administrative-geography/index.html,Thanet District Council,14/05/2013,337582,284.75,Agwood Ltd,AGW001,Director of Operational Services,Revenue,Transport Related Expenditure
http://www.ons.gov.uk/ons/guide-method/geography/products/names--codes-and-look-ups/names-and-codes-listings/names-and-codes-for-administrative-geography/index.html,Thanet District Council,14/05/2013,337772,857.82,Amicus Group Ltd,AMI002,Director of Community Services,Revenue,Premises Related Expenditure
http://www.ons.gov.uk/ons/guide-method/geography/products/names--codes-and-look-ups/names-and-codes-listings/names-and-codes-for-administrative-geography/index.html,Thanet District Council,14/05/2013,337774,-857.82,Amicus Group Ltd,AMI002,Director of Community Services,Revenue,Premises Related Expenditure
http://www.ons.gov.uk/ons/guide-method/geography/products/names--codes-and-look-ups/names-and-codes-listings/names-and-codes-for-administrative-geography/index.html,Thanet District Council,14/05/2013,337792,946.56,Amicus Group Ltd,AMI002,Director of Community Services,Revenue,Premises Related Expenditure
http://www.ons.gov.uk/ons/guide-method/geography/products/names--codes-and-look-ups/names-and-codes-listings/names-and-codes-for-administrative-geography/index.html,Thanet District Council,14/05/2013,337245,810.00,Andy Morris,MOR028,Director of Community Services,Revenue,Supplies And Services
http://www.ons.gov.uk/ons/guide-method/geography/products/names--codes-and-look-ups/names-and-codes-listings/names-and-codes-for-administrative-geography/index.html,Thanet District Council,14/05/2013,337641,2061.00,Ass For Public Service Excellence,ASS013,Director of Operational Services,Revenue,Supplies And Services
http://www.ons.gov.uk/ons/guide-method/geography/products/names--codes-and-look-ups/names-and-codes-listings/names-and-codes-for-administrative-geography/index.html,Thanet District Council,14/05/2013,337771,2948.28,Berryman,BER001,Director of Operational Services,Revenue,Supplies And Services
http://www.ons.gov.uk/ons/guide-method/geography/products/names--codes-and-look-ups/names-and-codes-listings/names-and-codes-for-administrative-geography/index.html,Thanet District Council,14/05/2013,337721,4557.68,Better Beaches Ltd,BET009,Director of Operational Services,Revenue,Supplies And Services
http://www.ons.gov.uk/ons/guide-method/geography/products/names--codes-and-look-ups/names-and-codes-listings/names-and-codes-for-administrative-geography/index.html,Thanet District Council,14/05/2013,337372,260.00,Birchington Village Centre Association,BIR008,Director of Corporate Services and Transformation,Revenue,Premises Related Expenditure
http://www.ons.gov.uk/ons/guide-method/geography/products/names--codes-and-look-ups/names-and-codes-listings/names-and-codes-for-administrative-geography/index.html,Thanet District Council,14/05/2013,337785,262.35,Blackhurst Wade,BLA004,Director of Operational Services,Revenue,Transport Related Expenditure
http://www.ons.gov.uk/ons/guide-method/geography/products/names--codes-and-look-ups/names-and-codes-listings/names-and-codes-for-administrative-geography/index.html,Thanet District Council,14/05/2013,337723,852.15,Bramling Construction Ltd,BRA020,Director of Corporate Services and Transformation,Balance Sheet,Long Term Assets
http://www.ons.gov.uk/ons/guide-method/geography/products/names--codes-and-look-ups/names-and-codes-listings/names-and-codes-for-administrative-geography/index.html,Thanet District Council,14/05/2013,337725,8990.00,Bramling Construction Ltd,BRA020,Director of Corporate Services and Transformation,Balance Sheet,Long Term Assets
http://www.ons.gov.uk/ons/guide-method/geography/products/names--codes-and-look-ups/names-and-codes-listings/names-and-codes-for-administrative-geography/index.html,Thanet District Council,14/05/2013,337196,625.20,British Parking Association,BPA001,Director of Operational Services,Revenue,Supplies And Services
http://www.ons.gov.uk/ons/guide-method/geography/products/names--codes-and-look-ups/names-and-codes-listings/names-and-codes-for-administrative-geography/index.html,Thanet District Council,14/05/2013,337548,498.75,British Sports Trust,BSP002,Director of Community Services,Revenue,Supplies And Services
http://www.ons.gov.uk/ons/guide-method/geography/products/names--codes-and-look-ups/names-and-codes-listings/names-and-codes-for-administrative-geography/index.html,Thanet District Council,14/05/2013,337290,39799.37,Canterbury City Council,CAN004,East Kent Shared Services,Revenue,Supplies And Services
http://www.ons.gov.uk/ons/guide-method/geography/products/names--codes-and-look-ups/names-and-codes-listings/names-and-codes-for-administrative-geography/index.html,Thanet District Council,14/05/2013,336375,8250.00,Capita Business Services Ltd,CAP001,Director of Community Services,Revenue,Supplies And Services
http://www.ons.gov.uk/ons/guide-method/geography/products/names--codes-and-look-ups/names-and-codes-listings/names-and-codes-for-administrative-geography/index.html,Thanet District Council,14/05/2013,336376,5000.00,Capita Business Services Ltd,CAP001,Director of Community Services,Revenue,Supplies And Services
http://www.ons.gov.uk/ons/guide-method/geography/products/names--codes-and-look-ups/names-and-codes-listings/names-and-codes-for-administrative-geography/index.html,Thanet District Council,14/05/2013,337825,1000.00,Capita Business Services Ltd,CAP001,Director of Community Services,Revenue,Supplies And Services
http://www.ons.gov.uk/ons/guide-method/geography/products/names--codes-and-look-ups/names-and-codes-listings/names-and-codes-for-administrative-geography/index.html,Thanet District Council,14/05/2013,337241,739.27,Capt G Tully,TUL001,Director of Operational Services,Revenue,Supplies And Services
http://www.ons.gov.uk/ons/guide-method/geography/products/names--codes-and-look-ups/names-and-codes-listings/names-and-codes-for-administrative-geography/index.html,Thanet District Council,14/05/2013,337343,446.58,Channel Commercials Plc,CCO001,Director of Operational Services,Revenue,Transport Related Expenditure
http://www.ons.gov.uk/ons/guide-method/geography/products/names--codes-and-look-ups/names-and-codes-listings/names-and-codes-for-administrative-geography/index.html,Thanet District Council,14/05/2013,337166,11100.00,Chapel Press,CHA039,Director of Community Services,Revenue,Supplies And Services
http://www.ons.gov.uk/ons/guide-method/geography/products/names--codes-and-look-ups/names-and-codes-listings/names-and-codes-for-administrative-geography/index.html,Thanet District Council,14/05/2013,337754,1049.22,Clague Llp,CLA038,Director of Community Services,Revenue,Supplies And Services
http://www.ons.gov.uk/ons/guide-method/geography/products/names--codes-and-look-ups/names-and-codes-listings/names-and-codes-for-administrative-geography/index.html,Thanet District Council,14/05/2013,337126,1755.00,Clare Maclean-Bell,MAC020,Director of Community Services,Revenue,Supplies And Services
http://www.ons.gov.uk/ons/guide-method/geography/products/names--codes-and-look-ups/names-and-codes-listings/names-and-codes-for-administrative-geography/index.html,Thanet District Council,14/05/2013,337303,391.38,Cobalt Telephone Technologies Ltd,COB002,Director of Operational Services,Revenue,Supplies And Services
http://www.ons.gov.uk/ons/guide-method/geography/products/names--codes-and-look-ups/names-and-codes-listings/names-and-codes-for-administrative-geography/index.html,Thanet District Council,14/05/2013,337537,623.90,Cobalt Telephone Technologies Ltd,COB002,Director of Operational Services,Revenue,Supplies And Services
http://www.ons.gov.uk/ons/guide-method/geography/products/names--codes-and-look-ups/names-and-codes-listings/names-and-codes-for-administrative-geography/index.html,Thanet District Council,14/05/2013,337722,6565.00,Connoisseur Renovations,CON037,Director of Corporate Services and Transformation,Balance Sheet,Long Term Assets
http://www.ons.gov.uk/ons/guide-method/geography/products/names--codes-and-look-ups/names-and-codes-listings/names-and-codes-for-administrative-geography/index.html,Thanet District Council,14/05/2013,337214,1366.00,Coombs (Canterbury) Ltd,COO033,Director of Corporate Services and Transformation,Balance Sheet,Long Term Assets
http://www.ons.gov.uk/ons/guide-method/geography/products/names--codes-and-look-ups/names-and-codes-listings/names-and-codes-for-administrative-geography/index.html,Thanet District Council,14/05/2013,337347,251.30,Direct Bearings & Power Trans Ltd,DIR001,Director of Operational Services,Revenue,Supplies And Services
http://www.ons.gov.uk/ons/guide-method/geography/products/names--codes-and-look-ups/names-and-codes-listings/names-and-codes-for-administrative-geography/index.html,Thanet District Council,14/05/2013,337223,28264.22,Dover District Council,DOV001,Director of Corporate Services and Transformation,Revenue,Supplies And Services
http://www.ons.gov.uk/ons/guide-method/geography/products/names--codes-and-look-ups/names-and-codes-listings/names-and-codes-for-administrative-geography/index.html,Thanet District Council,14/05/2013,337224,93679.25,Dover District Council,DOV001,Director of Corporate Services and Transformation,Revenue,Supplies And Services
http://www.ons.gov.uk/ons/guide-method/geography/products/names--codes-and-look-ups/names-and-codes-listings/names-and-codes-for-administrative-geography/index.html,Thanet District Council,14/05/2013,337365,2100.00,Dover District Council,DOV001,East Kent Shared Services,Revenue,Supplies And Services
http://www.ons.gov.uk/ons/guide-method/geography/products/names--codes-and-look-ups/names-and-codes-listings/names-and-codes-for-administrative-geography/index.html,Thanet District Council,14/05/2013,337325,2400.00,Dr R K Chhabra,CHH001,Director of Operational Services,Revenue,Supplies And Services
http://www.ons.gov.uk/ons/guide-method/geography/products/names--codes-and-look-ups/names-and-codes-listings/names-and-codes-for-administrative-geography/index.html,Thanet District Council,14/05/2013,337317,282.11,Edf Energy 1 Ltd,SEE012,Director of Operational Services,Revenue,Premises Related Expenditure
http://www.ons.gov.uk/ons/guide-method/geography/products/names--codes-and-look-ups/names-and-codes-listings/names-and-codes-for-administrative-geography/index.html,Thanet District Council,14/05/2013,337320,273.90,Edf Energy 1 Ltd,SEE012,Director of Operational Services,Revenue,Premises Related Expenditure
http://www.ons.gov.uk/ons/guide-method/geography/products/names--codes-and-look-ups/names-and-codes-listings/names-and-codes-for-administrative-geography/index.html,Thanet District Council,14/05/2013,337323,324.29,Edf Energy 1 Ltd,SEE012,Director of Operational Services,Revenue,Premises Related Expenditure
http://www.ons.gov.uk/ons/guide-method/geography/products/names--codes-and-look-ups/names-and-codes-listings/names-and-codes-for-administrative-geography/index.html,Thanet District Council,14/05/2013,337210,2296.80,Edge Enviro Services Ltd,EDG001,Director of Operational Services,Revenue,Supplies And Services
http://www.ons.gov.uk/ons/guide-method/geography/products/names--codes-and-look-ups/names-and-codes-listings/names-and-codes-for-administrative-geography/index.html,Thanet District Council,14/05/2013,337225,831.00,Egbert H Taylor & Company Ltd,TAY005,Director of Operational Services,Revenue,Supplies And Services
http://www.ons.gov.uk/ons/guide-method/geography/products/names--codes-and-look-ups/names-and-codes-listings/names-and-codes-for-administrative-geography/index.html,Thanet District Council,14/05/2013,337160,1296.00,Elecservice Ltd,ELE001,Director of Operational Services,Revenue,Supplies And Services
http://www.ons.gov.uk/ons/guide-method/geography/products/names--codes-and-look-ups/names-and-codes-listings/names-and-codes-for-administrative-geography/index.html,Thanet District Council,14/05/2013,337294,1496.00,Estuary Services Ltd,EST002,Director of Operational Services,Revenue,Premises Related Expenditure
http://www.ons.gov.uk/ons/guide-method/geography/products/names--codes-and-look-ups/names-and-codes-listings/names-and-codes-for-administrative-geography/index.html,Thanet District Council,14/05/2013,337671,3049.00,Evermech Ltd,EVE011,Director of Corporate Services and Transformation,Balance Sheet,Long Term Assets
http://www.ons.gov.uk/ons/guide-method/geography/products/names--codes-and-look-ups/names-and-codes-listings/names-and-codes-for-administrative-geography/index.html,Thanet District Council,14/05/2013,337727,9147.00,Evermech Ltd,EVE011,Director of Corporate Services and Transformation,Balance Sheet,Long Term Assets
http://www.ons.gov.uk/ons/guide-method/geography/products/names--codes-and-look-ups/names-and-codes-listings/names-and-codes-for-administrative-geography/index.html,Thanet District Council,14/05/2013,336704,12936.00,Experian Ltd,EXP004,East Kent Shared Services,Revenue,Supplies And Services
http://www.ons.gov.uk/ons/guide-method/geography/products/names--codes-and-look-ups/names-and-codes-listings/names-and-codes-for-administrative-geography/index.html,Thanet District Council,14/05/2013,337334,10944.00,Facultatieve Technologies,FAC003,Director of Operational Services,Revenue,Premises Related Expenditure
http://www.ons.gov.uk/ons/guide-method/geography/products/names--codes-and-look-ups/names-and-codes-listings/names-and-codes-for-administrative-geography/index.html,Thanet District Council,14/05/2013,337731,330.00,Florence Court Hotel,FLO003,Director of Community Services,Revenue,Supplies And Services
http://www.ons.gov.uk/ons/guide-method/geography/products/names--codes-and-look-ups/names-and-codes-listings/names-and-codes-for-administrative-geography/index.html,Thanet District Council,14/05/2013,337044,1298.50,Frandham Boarding Kennels,FRA010,Director of Corporate Services and Transformation,Revenue,Supplies And Services
http://www.ons.gov.uk/ons/guide-method/geography/products/names--codes-and-look-ups/names-and-codes-listings/names-and-codes-for-administrative-geography/index.html,Thanet District Council,14/05/2013,337833,718.00,Frandham Boarding Kennels,FRA010,Director of Corporate Services and Transformation,Revenue,Supplies And Services
http://www.ons.gov.uk/ons/guide-method/geography/products/names--codes-and-look-ups/names-and-codes-listings/names-and-codes-for-administrative-geography/index.html,Thanet District Council,14/05/2013,336693,1473.36,Gloster Furniture Ltd,GLO002,Director of Operational Services,Revenue,Supplies And Services
http://www.ons.gov.uk/ons/guide-method/geography/products/names--codes-and-look-ups/names-and-codes-listings/names-and-codes-for-administrative-geography/index.html,Thanet District Council,14/05/2013,337735,7000.00,H M Courts & Tribunal Service,HMC007,Director of Operational Services,Revenue,Supplies And Services
http://www.ons.gov.uk/ons/guide-method/geography/products/names--codes-and-look-ups/names-and-codes-listings/names-and-codes-for-administrative-geography/index.html,Thanet District Council,14/05/2013,337577,271.16,Haynes Of Maidstone Ltd,HAY008,Director of Operational Services,Revenue,Transport Related Expenditure
http://www.ons.gov.uk/ons/guide-method/geography/products/names--codes-and-look-ups/names-and-codes-listings/names-and-codes-for-administrative-geography/index.html,Thanet District Council,14/05/2013,337742,248.60,Haynes Of Maidstone Ltd,HAY008,Director of Operational Services,Revenue,Transport Related Expenditure
http://www.ons.gov.uk/ons/guide-method/geography/products/names--codes-and-look-ups/names-and-codes-listings/names-and-codes-for-administrative-geography/index.html,Thanet District Council,14/05/2013,337156,3000.00,Hbhc Synergy Ltd,HBH001,Director of Corporate Services and Transformation,Revenue,Supplies And Services
http://www.ons.gov.uk/ons/guide-method/geography/products/names--codes-and-look-ups/names-and-codes-listings/names-and-codes-for-administrative-geography/index.html,Thanet District Council,14/05/2013,337578,1250.00,Hbhc Synergy Ltd,HBH001,Director of Corporate Services and Transformation,Revenue,Supplies And Services
http://www.ons.gov.uk/ons/guide-method/geography/products/names--codes-and-look-ups/names-and-codes-listings/names-and-codes-for-administrative-geography/index.html,Thanet District Council,14/05/2013,337039,2339.13,Holbrook Revell Electrical Ltd,HOL015,Director of Operational Services,Revenue,Premises Related Expenditure
http://www.ons.gov.uk/ons/guide-method/geography/products/names--codes-and-look-ups/names-and-codes-listings/names-and-codes-for-administrative-geography/index.html,Thanet District Council,14/05/2013,337039,96.25,Holbrook Revell Electrical Ltd,HOL015,Director of Operational Services,Revenue,Supplies And Services
http://www.ons.gov.uk/ons/guide-method/geography/products/names--codes-and-look-ups/names-and-codes-listings/names-and-codes-for-administrative-geography/index.html,Thanet District Council,14/05/2013,337307,450.00,Housing Reviews Limited,HOU012,Director of Community Services,Revenue,Supplies And Services
http://www.ons.gov.uk/ons/guide-method/geography/products/names--codes-and-look-ups/names-and-codes-listings/names-and-codes-for-administrative-geography/index.html,Thanet District Council,14/05/2013,337308,3901.61,Hr Go Recruitment Ltd,HRG002,Director of Operational Services,Revenue,Employees
http://www.ons.gov.uk/ons/guide-method/geography/products/names--codes-and-look-ups/names-and-codes-listings/names-and-codes-for-administrative-geography/index.html,Thanet District Council,14/05/2013,337309,4391.49,Hr Go Recruitment Ltd,HRG002,Director of Operational Services,Revenue,Employees
http://www.ons.gov.uk/ons/guide-method/geography/products/names--codes-and-look-ups/names-and-codes-listings/names-and-codes-for-administrative-geography/index.html,Thanet District Council,14/05/2013,337310,499.50,Hr Go Recruitment Ltd,HRG002,Director of Operational Services,Revenue,Employees
http://www.ons.gov.uk/ons/guide-method/geography/products/names--codes-and-look-ups/names-and-codes-listings/names-and-codes-for-administrative-geography/index.html,Thanet District Council,14/05/2013,337311,291.56,Hr Go Recruitment Ltd,HRG002,Director of Operational Services,Revenue,Employees
http://www.ons.gov.uk/ons/guide-method/geography/products/names--codes-and-look-ups/names-and-codes-listings/names-and-codes-for-administrative-geography/index.html,Thanet District Council,14/05/2013,337786,499.50,Hr Go Recruitment Ltd,HRG002,Director of Operational Services,Revenue,Employees
http://www.ons.gov.uk/ons/guide-method/geography/products/names--codes-and-look-ups/names-and-codes-listings/names-and-codes-for-administrative-geography/index.html,Thanet District Council,14/05/2013,337787,291.56,Hr Go Recruitment Ltd,HRG002,Director of Operational Services,Revenue,Employees
http://www.ons.gov.uk/ons/guide-method/geography/products/names--codes-and-look-ups/names-and-codes-listings/names-and-codes-for-administrative-geography/index.html,Thanet District Council,14/05/2013,337788,3967.02,Hr Go Recruitment Ltd,HRG002,Director of Operational Services,Revenue,Employees
http://www.ons.gov.uk/ons/guide-method/geography/products/names--codes-and-look-ups/names-and-codes-listings/names-and-codes-for-administrative-geography/index.html,Thanet District Council,14/05/2013,336348,1450.90,Hydro-Cleansing Ltd,HYD012,Director of Operational Services,Revenue,Premises Related Expenditure
http://www.ons.gov.uk/ons/guide-method/geography/products/names--codes-and-look-ups/names-and-codes-listings/names-and-codes-for-administrative-geography/index.html,Thanet District Council,14/05/2013,337551,1632.00,Idox Software  Limited,IDO001,Director of Community Services,Revenue,Supplies And Services
http://www.ons.gov.uk/ons/guide-method/geography/products/names--codes-and-look-ups/names-and-codes-listings/names-and-codes-for-administrative-geography/index.html,Thanet District Council,14/05/2013,337133,4340.00,Inphase Ltd,INP001,Director of Corporate Services and Transformation,Revenue,Supplies And Services
http://www.ons.gov.uk/ons/guide-method/geography/products/names--codes-and-look-ups/names-and-codes-listings/names-and-codes-for-administrative-geography/index.html,Thanet District Council,14/05/2013,337832,590.00,Irrv,IRR002,East Kent Shared Services,Revenue,Supplies And Services
http://www.ons.gov.uk/ons/guide-method/geography/products/names--codes-and-look-ups/names-and-codes-listings/names-and-codes-for-administrative-geography/index.html,Thanet District Council,14/05/2013,337212,1500.00,Itec Intelligent Services Plc,ITE001,East Kent Shared Services,Revenue,Supplies And Services
http://www.ons.gov.uk/ons/guide-method/geography/products/names--codes-and-look-ups/names-and-codes-listings/names-and-codes-for-administrative-geography/index.html,Thanet District Council,14/05/2013,336897,588.45,Jewson Ltd,JEW001,Director of Corporate Services and Transformation,Balance Sheet,Long Term Assets
http://www.ons.gov.uk/ons/guide-method/geography/products/names--codes-and-look-ups/names-and-codes-listings/names-and-codes-for-administrative-geography/index.html,Thanet District Council,14/05/2013,337670,738.12,John Gale,GAL001,Director of Corporate Services and Transformation,Balance Sheet,Long Term Assets
http://www.ons.gov.uk/ons/guide-method/geography/products/names--codes-and-look-ups/names-and-codes-listings/names-and-codes-for-administrative-geography/index.html,Thanet District Council,14/05/2013,337676,787.80,John Gale,GAL001,Director of Corporate Services and Transformation,Balance Sheet,Long Term Assets
http://www.ons.gov.uk/ons/guide-method/geography/products/names--codes-and-look-ups/names-and-codes-listings/names-and-codes-for-administrative-geography/index.html,Thanet District Council,14/05/2013,337284,263.47,Johnston Sweepers Ltd,JOH008,Director of Operational Services,Revenue,Transport Related Expenditure
http://www.ons.gov.uk/ons/guide-method/geography/products/names--codes-and-look-ups/names-and-codes-listings/names-and-codes-for-administrative-geography/index.html,Thanet District Council,14/05/2013,337114,231.35,Kent County Council (Kcs),KCC003,Director of Operational Services,Revenue,Premises Related Expenditure
http://www.ons.gov.uk/ons/guide-method/geography/products/names--codes-and-look-ups/names-and-codes-listings/names-and-codes-for-administrative-geography/index.html,Thanet District Council,14/05/2013,337287,354.22,Kent County Council (Kcs),KCC003,Director of Operational Services,Revenue,Premises Related Expenditure
http://www.ons.gov.uk/ons/guide-method/geography/products/names--codes-and-look-ups/names-and-codes-listings/names-and-codes-for-administrative-geography/index.html,Thanet District Council,14/05/2013,337288,270.00,Kent County Council (Kcs),KCC003,Director of Operational Services,Revenue,Premises Related Expenditure
http://www.ons.gov.uk/ons/guide-method/geography/products/names--codes-and-look-ups/names-and-codes-listings/names-and-codes-for-administrative-geography/index.html,Thanet District Council,14/05/2013,336535,1234.00,Lexisnexis Uk,LEX002,Director of Community Services,Revenue,Supplies And Services
http://www.ons.gov.uk/ons/guide-method/geography/products/names--codes-and-look-ups/names-and-codes-listings/names-and-codes-for-administrative-geography/index.html,Thanet District Council,14/05/2013,337651,580.90,Locata (Housing Services) Ltd,LOC015,Director of Community Services,Revenue,Supplies And Services
http://www.ons.gov.uk/ons/guide-method/geography/products/names--codes-and-look-ups/names-and-codes-listings/names-and-codes-for-administrative-geography/index.html,Thanet District Council,14/05/2013,337652,302.00,Locata (Housing Services) Ltd,LOC015,Director of Community Services,Revenue,Supplies And Services
http://www.ons.gov.uk/ons/guide-method/geography/products/names--codes-and-look-ups/names-and-codes-listings/names-and-codes-for-administrative-geography/index.html,Thanet District Council,14/05/2013,337654,3824.00,Locata (Housing Services) Ltd,LOC015,Director of Community Services,Revenue,Supplies And Services
http://www.ons.gov.uk/ons/guide-method/geography/products/names--codes-and-look-ups/names-and-codes-listings/names-and-codes-for-administrative-geography/index.html,Thanet District Council,14/05/2013,337655,29661.24,Locata (Housing Services) Ltd,LOC015,Director of Community Services,Revenue,Supplies And Services
http://www.ons.gov.uk/ons/guide-method/geography/products/names--codes-and-look-ups/names-and-codes-listings/names-and-codes-for-administrative-geography/index.html,Thanet District Council,14/05/2013,337734,380.00,Margate Bowling Club,MBO001,Director of Corporate Services and Transformation,Revenue,Premises Related Expenditure
http://www.ons.gov.uk/ons/guide-method/geography/products/names--codes-and-look-ups/names-and-codes-listings/names-and-codes-for-administrative-geography/index.html,Thanet District Council,14/05/2013,337134,650.00,Maxwells Grounds Maintenance Ltd,MAX002,Director of Operational Services,Revenue,Premises Related Expenditure
http://www.ons.gov.uk/ons/guide-method/geography/products/names--codes-and-look-ups/names-and-codes-listings/names-and-codes-for-administrative-geography/index.html,Thanet District Council,14/05/2013,326255,17479.21,Mears Ltd,MEA003,Director of Community Services,Revenue,Premises Related Expenditure
http://www.ons.gov.uk/ons/guide-method/geography/products/names--codes-and-look-ups/names-and-codes-listings/names-and-codes-for-administrative-geography/index.html,Thanet District Council,14/05/2013,326256,17479.21,Mears Ltd,MEA003,Director of Community Services,Revenue,Premises Related Expenditure
http://www.ons.gov.uk/ons/guide-method/geography/products/names--codes-and-look-ups/names-and-codes-listings/names-and-codes-for-administrative-geography/index.html,Thanet District Council,14/05/2013,326257,17479.21,Mears Ltd,MEA003,Director of Community Services,Revenue,Premises Related Expenditure
http://www.ons.gov.uk/ons/guide-method/geography/products/names--codes-and-look-ups/names-and-codes-listings/names-and-codes-for-administrative-geography/index.html,Thanet District Council,14/05/2013,326258,-10596.00,Mears Ltd,MEA003,Director of Community Services,Revenue,Premises Related Expenditure
http://www.ons.gov.uk/ons/guide-method/geography/products/names--codes-and-look-ups/names-and-codes-listings/names-and-codes-for-administrative-geography/index.html,Thanet District Council,14/05/2013,337176,9215.85,Mears Ltd,MEA003,Director of Corporate Services and Transformation,Balance Sheet,Current Assets
http://www.ons.gov.uk/ons/guide-method/geography/products/names--codes-and-look-ups/names-and-codes-listings/names-and-codes-for-administrative-geography/index.html,Thanet District Council,14/05/2013,337177,15887.57,Mears Ltd,MEA003,Director of Corporate Services and Transformation,Balance Sheet,Current Assets
http://www.ons.gov.uk/ons/guide-method/geography/products/names--codes-and-look-ups/names-and-codes-listings/names-and-codes-for-administrative-geography/index.html,Thanet District Council,14/05/2013,337178,25369.97,Mears Ltd,MEA003,Director of Corporate Services and Transformation,Balance Sheet,Current Assets
http://www.ons.gov.uk/ons/guide-method/geography/products/names--codes-and-look-ups/names-and-codes-listings/names-and-codes-for-administrative-geography/index.html,Thanet District Council,14/05/2013,337179,31435.86,Mears Ltd,MEA003,Director of Corporate Services and Transformation,Balance Sheet,Current Assets
http://www.ons.gov.uk/ons/guide-method/geography/products/names--codes-and-look-ups/names-and-codes-listings/names-and-codes-for-administrative-geography/index.html,Thanet District Council,14/05/2013,337180,6006.58,Mears Ltd,MEA003,Director of Corporate Services and Transformation,Balance Sheet,Current Assets
http://www.ons.gov.uk/ons/guide-method/geography/products/names--codes-and-look-ups/names-and-codes-listings/names-and-codes-for-administrative-geography/index.html,Thanet District Council,14/05/2013,337182,1636.81,Mears Ltd,MEA003,Director of Corporate Services and Transformation,Balance Sheet,Current Assets
http://www.ons.gov.uk/ons/guide-method/geography/products/names--codes-and-look-ups/names-and-codes-listings/names-and-codes-for-administrative-geography/index.html,Thanet District Council,14/05/2013,337184,412.16,Mears Ltd,MEA003,Director of Corporate Services and Transformation,Balance Sheet,Current Assets
http://www.ons.gov.uk/ons/guide-method/geography/products/names--codes-and-look-ups/names-and-codes-listings/names-and-codes-for-administrative-geography/index.html,Thanet District Council,14/05/2013,337826,19917.40,Mears Ltd,MEA003,Director of Corporate Services and Transformation,Balance Sheet,Current Assets
http://www.ons.gov.uk/ons/guide-method/geography/products/names--codes-and-look-ups/names-and-codes-listings/names-and-codes-for-administrative-geography/index.html,Thanet District Council,14/05/2013,337562,547.79,Michael Page Finance,PAG008,Director of Corporate Services and Transformation,Revenue,Employees
http://www.ons.gov.uk/ons/guide-method/geography/products/names--codes-and-look-ups/names-and-codes-listings/names-and-codes-for-administrative-geography/index.html,Thanet District Council,14/05/2013,337563,1225.50,Michael Page Finance,PAG008,Director of Corporate Services and Transformation,Revenue,Employees
http://www.ons.gov.uk/ons/guide-method/geography/products/names--codes-and-look-ups/names-and-codes-listings/names-and-codes-for-administrative-geography/index.html,Thanet District Council,14/05/2013,337227,552.65,Morgan Jones Ltd,MOR001,East Kent Shared Services,Revenue,Employees
http://www.ons.gov.uk/ons/guide-method/geography/products/names--codes-and-look-ups/names-and-codes-listings/names-and-codes-for-administrative-geography/index.html,Thanet District Council,14/05/2013,337228,582.75,Morgan Jones Ltd,MOR001,Director of Corporate Services and Transformation,Revenue,Employees
http://www.ons.gov.uk/ons/guide-method/geography/products/names--codes-and-look-ups/names-and-codes-listings/names-and-codes-for-administrative-geography/index.html,Thanet District Council,14/05/2013,337719,552.65,Morgan Jones Ltd,MOR001,East Kent Shared Services,Revenue,Employees
http://www.ons.gov.uk/ons/guide-method/geography/products/names--codes-and-look-ups/names-and-codes-listings/names-and-codes-for-administrative-geography/index.html,Thanet District Council,14/05/2013,337736,2592.00,Mr Philip Woolfe,WOO030,Director of Operational Services,Revenue,Supplies And Services
http://www.ons.gov.uk/ons/guide-method/geography/products/names--codes-and-look-ups/names-and-codes-listings/names-and-codes-for-administrative-geography/index.html,Thanet District Council,14/05/2013,337140,275.00,Multiserv,MUL004,Director of Corporate Services and Transformation,Balance Sheet,Current Assets
http://www.ons.gov.uk/ons/guide-method/geography/products/names--codes-and-look-ups/names-and-codes-listings/names-and-codes-for-administrative-geography/index.html,Thanet District Council,14/05/2013,337141,375.00,Multiserv,MUL004,Director of Corporate Services and Transformation,Balance Sheet,Current Assets
http://www.ons.gov.uk/ons/guide-method/geography/products/names--codes-and-look-ups/names-and-codes-listings/names-and-codes-for-administrative-geography/index.html,Thanet District Council,14/05/2013,337142,325.00,Multiserv,MUL004,Director of Corporate Services and Transformation,Balance Sheet,Current Assets
http://www.ons.gov.uk/ons/guide-method/geography/products/names--codes-and-look-ups/names-and-codes-listings/names-and-codes-for-administrative-geography/index.html,Thanet District Council,14/05/2013,337207,28103.00,N E Murray Marine Contractors,MUR001,Director of Operational Services,Revenue,Third Party Payments
http://www.ons.gov.uk/ons/guide-method/geography/products/names--codes-and-look-ups/names-and-codes-listings/names-and-codes-for-administrative-geography/index.html,Thanet District Council,14/05/2013,337226,56.00,N J P Contractors,NJP001,Director of Community Services,Revenue,Premises Related Expenditure
http://www.ons.gov.uk/ons/guide-method/geography/products/names--codes-and-look-ups/names-and-codes-listings/names-and-codes-for-administrative-geography/index.html,Thanet District Council,14/05/2013,337226,980.00,N J P Contractors,NJP001,Director of Operational Services,Revenue,Premises Related Expenditure
http://www.ons.gov.uk/ons/guide-method/geography/products/names--codes-and-look-ups/names-and-codes-listings/names-and-codes-for-administrative-geography/index.html,Thanet District Council,14/05/2013,337371,3645.00,National Boat Shows Ltd,NAT001,Director of Operational Services,Revenue,Supplies And Services
http://www.ons.gov.uk/ons/guide-method/geography/products/names--codes-and-look-ups/names-and-codes-listings/names-and-codes-for-administrative-geography/index.html,Thanet District Council,14/05/2013,337373,729.00,National Boat Shows Ltd,NAT001,Director of Operational Services,Revenue,Supplies And Services
http://www.ons.gov.uk/ons/guide-method/geography/products/names--codes-and-look-ups/names-and-codes-listings/names-and-codes-for-administrative-geography/index.html,Thanet District Council,14/05/2013,337667,6151.00,Northwood Builders,NOR002,Director of Corporate Services and Transformation,Balance Sheet,Long Term Assets
http://www.ons.gov.uk/ons/guide-method/geography/products/names--codes-and-look-ups/names-and-codes-listings/names-and-codes-for-administrative-geography/index.html,Thanet District Council,14/05/2013,337115,11225.63,Ocs Group Uk Ltd T/A Fountains,OCS005,Director of Corporate Services and Transformation,Balance Sheet,Current Assets
http://www.ons.gov.uk/ons/guide-method/geography/products/names--codes-and-look-ups/names-and-codes-listings/names-and-codes-for-administrative-geography/index.html,Thanet District Council,14/05/2013,337137,1740.00,Ocs Group Uk Ltd T/A Fountains,OCS005,Director of Corporate Services and Transformation,Balance Sheet,Current Assets
http://www.ons.gov.uk/ons/guide-method/geography/products/names--codes-and-look-ups/names-and-codes-listings/names-and-codes-for-administrative-geography/index.html,Thanet District Council,14/05/2013,337159,2881.65,Perrys Motor Sales Limited,PER001,Director of Operational Services,Revenue,Transport Related Expenditure
http://www.ons.gov.uk/ons/guide-method/geography/products/names--codes-and-look-ups/names-and-codes-listings/names-and-codes-for-administrative-geography/index.html,Thanet District Council,14/05/2013,337244,233.27,Phoenix Software Ltd,PHO002,Director of Corporate Services and Transformation,Revenue,Supplies And Services
http://www.ons.gov.uk/ons/guide-method/geography/products/names--codes-and-look-ups/names-and-codes-listings/names-and-codes-for-administrative-geography/index.html,Thanet District Council,14/05/2013,337167,41639.16,Profile Security Services Limited,PRO018,Director of Operational Services,Revenue,Supplies And Services
http://www.ons.gov.uk/ons/guide-method/geography/products/names--codes-and-look-ups/names-and-codes-listings/names-and-codes-for-administrative-geography/index.html,Thanet District Council,14/05/2013,336893,805.00,R Cannon,CAN007,Director of Operational Services,Revenue,Premises Related Expenditure
http://www.ons.gov.uk/ons/guide-method/geography/products/names--codes-and-look-ups/names-and-codes-listings/names-and-codes-for-administrative-geography/index.html,Thanet District Council,14/05/2013,337291,1120.00,R Cannon,CAN007,Director of Operational Services,Revenue,Premises Related Expenditure
http://www.ons.gov.uk/ons/guide-method/geography/products/names--codes-and-look-ups/names-and-codes-listings/names-and-codes-for-administrative-geography/index.html,Thanet District Council,14/05/2013,337302,3679.20,R Cannon,CAN007,Director of Operational Services,Revenue,Supplies And Services
http://www.ons.gov.uk/ons/guide-method/geography/products/names--codes-and-look-ups/names-and-codes-listings/names-and-codes-for-administrative-geography/index.html,Thanet District Council,14/05/2013,337795,31704.18,R R Richardson Ltd,RIC027,Director of Corporate Services and Transformation,Balance Sheet,Long Term Assets
http://www.ons.gov.uk/ons/guide-method/geography/products/names--codes-and-look-ups/names-and-codes-listings/names-and-codes-for-administrative-geography/index.html,Thanet District Council,14/05/2013,337070,4421.10,Royal Mail,ROY004,Director of Corporate Services and Transformation,Revenue,Supplies And Services
http://www.ons.gov.uk/ons/guide-method/geography/products/names--codes-and-look-ups/names-and-codes-listings/names-and-codes-for-administrative-geography/index.html,Thanet District Council,14/05/2013,337733,5637.13,Royal Mail,ROY004,Director of Corporate Services and Transformation,Revenue,Supplies And Services
http://www.ons.gov.uk/ons/guide-method/geography/products/names--codes-and-look-ups/names-and-codes-listings/names-and-codes-for-administrative-geography/index.html,Thanet District Council,14/05/2013,336413,716.09,Sba Ltd,SBA001,Director of Operational Services,Revenue,Supplies And Services
http://www.ons.gov.uk/ons/guide-method/geography/products/names--codes-and-look-ups/names-and-codes-listings/names-and-codes-for-administrative-geography/index.html,Thanet District Council,14/05/2013,337560,411.82,Sba Ltd,SBA001,Director of Community Services,Revenue,Supplies And Services
http://www.ons.gov.uk/ons/guide-method/geography/products/names--codes-and-look-ups/names-and-codes-listings/names-and-codes-for-administrative-geography/index.html,Thanet District Council,14/05/2013,337340,224.56,Screwfix Direct Ltd,SCR001,Director of Operational Services,Revenue,Supplies And Services
http://www.ons.gov.uk/ons/guide-method/geography/products/names--codes-and-look-ups/names-and-codes-listings/names-and-codes-for-administrative-geography/index.html,Thanet District Council,14/05/2013,337283,299.36,Solid Stamps Ltd,SOL002,Director of Corporate Services and Transformation,Revenue,Supplies And Services
http://www.ons.gov.uk/ons/guide-method/geography/products/names--codes-and-look-ups/names-and-codes-listings/names-and-codes-for-administrative-geography/index.html,Thanet District Council,14/05/2013,337674,14630.00,South East Building Company Limited,SEB001,Director of Corporate Services and Transformation,Balance Sheet,Long Term Assets
http://www.ons.gov.uk/ons/guide-method/geography/products/names--codes-and-look-ups/names-and-codes-listings/names-and-codes-for-administrative-geography/index.html,Thanet District Council,14/05/2013,337642,363.37,Southern Gas Networks Plc,SGN002,Director of Corporate Services and Transformation,Balance Sheet,Current Assets
http://www.ons.gov.uk/ons/guide-method/geography/products/names--codes-and-look-ups/names-and-codes-listings/names-and-codes-for-administrative-geography/index.html,Thanet District Council,14/05/2013,337172,331.35,Southern Paper,SPA002,Director of Corporate Services and Transformation,Revenue,Supplies And Services
http://www.ons.gov.uk/ons/guide-method/geography/products/names--codes-and-look-ups/names-and-codes-listings/names-and-codes-for-administrative-geography/index.html,Thanet District Council,14/05/2013,337748,313.20,Sparshatts Of Kent Ltd,SPA008,Director of Operational Services,Revenue,Transport Related Expenditure
http://www.ons.gov.uk/ons/guide-method/geography/products/names--codes-and-look-ups/names-and-codes-listings/names-and-codes-for-administrative-geography/index.html,Thanet District Council,14/05/2013,337769,128.00,St Anne's Parish Hall,STA038,Director of Corporate Services and Transformation,Revenue,Premises Related Expenditure
http://www.ons.gov.uk/ons/guide-method/geography/products/names--codes-and-look-ups/names-and-codes-listings/names-and-codes-for-administrative-geography/index.html,Thanet District Council,14/05/2013,337770,128.00,St Anne's Parish Hall,STA038,Director of Corporate Services and Transformation,Revenue,Premises Related Expenditure
http://www.ons.gov.uk/ons/guide-method/geography/products/names--codes-and-look-ups/names-and-codes-listings/names-and-codes-for-administrative-geography/index.html,Thanet District Council,14/05/2013,336667,460.00,Stagecoach Services Limited,STA023,Director of Corporate Services and Transformation,Balance Sheet,Current Assets
http://www.ons.gov.uk/ons/guide-method/geography/products/names--codes-and-look-ups/names-and-codes-listings/names-and-codes-for-administrative-geography/index.html,Thanet District Council,14/05/2013,336898,878.34,Stand Fast,STA003,Director of Operational Services,Revenue,Premises Related Expenditure
http://www.ons.gov.uk/ons/guide-method/geography/products/names--codes-and-look-ups/names-and-codes-listings/names-and-codes-for-administrative-geography/index.html,Thanet District Council,14/05/2013,336365,-314.14,Supplies Team,SUP001,Director of Corporate Services and Transformation,Balance Sheet,Current Assets
http://www.ons.gov.uk/ons/guide-method/geography/products/names--codes-and-look-ups/names-and-codes-listings/names-and-codes-for-administrative-geography/index.html,Thanet District Council,14/05/2013,336365,533.68,Supplies Team,SUP001,Director of Corporate Services and Transformation,Balance Sheet,Current Liabilities
http://www.ons.gov.uk/ons/guide-method/geography/products/names--codes-and-look-ups/names-and-codes-listings/names-and-codes-for-administrative-geography/index.html,Thanet District Council,14/05/2013,337190,448.80,Supplies Team,SUP001,Director of Corporate Services and Transformation,Revenue,Supplies And Services
http://www.ons.gov.uk/ons/guide-method/geography/products/names--codes-and-look-ups/names-and-codes-listings/names-and-codes-for-administrative-geography/index.html,Thanet District Council,14/05/2013,337691,1662.04,Supplies Team,SUP001,Director of Community Services,Revenue,Supplies And Services
http://www.ons.gov.uk/ons/guide-method/geography/products/names--codes-and-look-ups/names-and-codes-listings/names-and-codes-for-administrative-geography/index.html,Thanet District Council,14/05/2013,336363,1835.40,Swale Shutter & Door Services Ltd,SWA013,Director of Operational Services,Revenue,Supplies And Services
http://www.ons.gov.uk/ons/guide-method/geography/products/names--codes-and-look-ups/names-and-codes-listings/names-and-codes-for-administrative-geography/index.html,Thanet District Council,14/05/2013,337238,420.00,The Bay Guest House,BAY006,Director of Community Services,Revenue,Supplies And Services
http://www.ons.gov.uk/ons/guide-method/geography/products/names--codes-and-look-ups/names-and-codes-listings/names-and-codes-for-administrative-geography/index.html,Thanet District Council,14/05/2013,337120,2566.67,The Glenwood Hotel,GLE007,Director of Community Services,Revenue,Supplies And Services
http://www.ons.gov.uk/ons/guide-method/geography/products/names--codes-and-look-ups/names-and-codes-listings/names-and-codes-for-administrative-geography/index.html,Thanet District Council,14/05/2013,337729,5000.00,The Pipeline,PIP002,Director of Community Services,Revenue,Supplies And Services
http://www.ons.gov.uk/ons/guide-method/geography/products/names--codes-and-look-ups/names-and-codes-listings/names-and-codes-for-administrative-geography/index.html,Thanet District Council,14/05/2013,337570,250.00,Thompsons Solicitors Llp,THO046,Director of Operational Services,Revenue,Supplies And Services
http://www.ons.gov.uk/ons/guide-method/geography/products/names--codes-and-look-ups/names-and-codes-listings/names-and-codes-for-administrative-geography/index.html,Thanet District Council,14/05/2013,337688,4900.00,Thomson Reuters,THO043,Director of Corporate Services and Transformation,Revenue,Supplies And Services
http://www.ons.gov.uk/ons/guide-method/geography/products/names--codes-and-look-ups/names-and-codes-listings/names-and-codes-for-administrative-geography/index.html,Thanet District Council,14/05/2013,337565,336.00,Trinity Resource Centre,TRI008,Director of Corporate Services and Transformation,Revenue,Premises Related Expenditure
http://www.ons.gov.uk/ons/guide-method/geography/products/names--codes-and-look-ups/names-and-codes-listings/names-and-codes-for-administrative-geography/index.html,Thanet District Council,14/05/2013,337557,378.11,Viridor Waste Management Ltd,VIR003,Director of Operational Services,Revenue,Supplies And Services
http://www.ons.gov.uk/ons/guide-method/geography/products/names--codes-and-look-ups/names-and-codes-listings/names-and-codes-for-administrative-geography/index.html,Thanet District Council,14/05/2013,337559,679.61,Viridor Waste Management Ltd,VIR003,Director of Operational Services,Revenue,Supplies And Services
http://www.ons.gov.uk/ons/guide-method/geography/products/names--codes-and-look-ups/names-and-codes-listings/names-and-codes-for-administrative-geography/index.html,Thanet District Council,14/05/2013,337038,1788.00,Watling Tyre Service Ltd,WAT003,Director of Operational Services,Revenue,Supplies And Services
http://www.ons.gov.uk/ons/guide-method/geography/products/names--codes-and-look-ups/names-and-codes-listings/names-and-codes-for-administrative-geography/index.html,Thanet District Council,14/05/2013,337726,9876.00,Wessex Lift Company Ltd,WES031,Director of Corporate Services and Transformation,Balance Sheet,Long Term Assets
http://www.ons.gov.uk/ons/guide-method/geography/products/names--codes-and-look-ups/names-and-codes-listings/names-and-codes-for-administrative-geography/index.html,Thanet District Council,14/05/2013,337549,1300.00,Wyg Env Planning Transport Limited,WYG002,Director of Operational Services,Revenue,Premises Related Expenditure
http://www.ons.gov.uk/ons/guide-method/geography/products/names--codes-and-look-ups/names-and-codes-listings/names-and-codes-for-administrative-geography/index.html,Thanet District Council,14/05/2013,337643,428.83,Zen Internet Ltd,ZEN001,East Kent Shared Services,Revenue,Supplies And Services
http://www.ons.gov.uk/ons/guide-method/geography/products/names--codes-and-look-ups/names-and-codes-listings/names-and-codes-for-administrative-geography/index.html,Thanet District Council,15/05/2013,337349,542.88,Bridge Security Cctv Ltd,BRI039,Director of Operational Services,Revenue,Supplies And Services
http://www.ons.gov.uk/ons/guide-method/geography/products/names--codes-and-look-ups/names-and-codes-listings/names-and-codes-for-administrative-geography/index.html,Thanet District Council,15/05/2013,335323,648.90,Community Network Services Limited,CNS001,Director of Operational Services,Revenue,Transport Related Expenditure
http://www.ons.gov.uk/ons/guide-method/geography/products/names--codes-and-look-ups/names-and-codes-listings/names-and-codes-for-administrative-geography/index.html,Thanet District Council,15/05/2013,336270,-658.50,Community Network Services Limited,CNS001,Director of Operational Services,Revenue,Transport Related Expenditure
http://www.ons.gov.uk/ons/guide-method/geography/products/names--codes-and-look-ups/names-and-codes-listings/names-and-codes-for-administrative-geography/index.html,Thanet District Council,15/05/2013,338030,658.50,Community Network Services Limited,CNS001,Director of Operational Services,Revenue,Transport Related Expenditure
http://www.ons.gov.uk/ons/guide-method/geography/products/names--codes-and-look-ups/names-and-codes-listings/names-and-codes-for-administrative-geography/index.html,Thanet District Council,15/05/2013,337300,250.00,George Mccabe,MCC001,Director of Operational Services,Revenue,Premises Related Expenditure
http://www.ons.gov.uk/ons/guide-method/geography/products/names--codes-and-look-ups/names-and-codes-listings/names-and-codes-for-administrative-geography/index.html,Thanet District Council,15/05/2013,332696,20440.00,Lednor Construction Limited,LED003,Director of Corporate Services and Transformation,Balance Sheet,Current Assets
http://www.ons.gov.uk/ons/guide-method/geography/products/names--codes-and-look-ups/names-and-codes-listings/names-and-codes-for-administrative-geography/index.html,Thanet District Council,15/05/2013,338039,10596.00,Mears Ltd,MEA003,Director of Community Services,Revenue,Premises Related Expenditure
http://www.ons.gov.uk/ons/guide-method/geography/products/names--codes-and-look-ups/names-and-codes-listings/names-and-codes-for-administrative-geography/index.html,Thanet District Council,15/05/2013,336245,288.40,Sitexorbis Ltd,SIT007,Director of Community Services,Revenue,Supplies And Services
http://www.ons.gov.uk/ons/guide-method/geography/products/names--codes-and-look-ups/names-and-codes-listings/names-and-codes-for-administrative-geography/index.html,Thanet District Council,15/05/2013,336396,7456.16,Trowers & Hamlins,TRO001,Director of Corporate Services and Transformation,Balance Sheet,Long Term Assets
http://www.ons.gov.uk/ons/guide-method/geography/products/names--codes-and-look-ups/names-and-codes-listings/names-and-codes-for-administrative-geography/index.html,Thanet District Council,15/05/2013,336397,5346.18,Trowers & Hamlins,TRO001,Director of Corporate Services and Transformation,Balance Sheet,Long Term Assets
http://www.ons.gov.uk/ons/guide-method/geography/products/names--codes-and-look-ups/names-and-codes-listings/names-and-codes-for-administrative-geography/index.html,Thanet District Council,15/05/2013,336398,49986.75,Trowers & Hamlins,TRO001,Director of Corporate Services and Transformation,Balance Sheet,Long Term Assets
http://www.ons.gov.uk/ons/guide-method/geography/products/names--codes-and-look-ups/names-and-codes-listings/names-and-codes-for-administrative-geography/index.html,Thanet District Council,15/05/2013,338034,26551.88,Trowers & Hamlins,TRO001,Director of Corporate Services and Transformation,Balance Sheet,Long Term Assets
http://www.ons.gov.uk/ons/guide-method/geography/products/names--codes-and-look-ups/names-and-codes-listings/names-and-codes-for-administrative-geography/index.html,Thanet District Council,17/05/2013,N/A,430.16,REDACTED PERSONAL DATA,N/A,Director of Operational Services,Revenue,Transport Related Expenditure
http://www.ons.gov.uk/ons/guide-method/geography/products/names--codes-and-look-ups/names-and-codes-listings/names-and-codes-for-administrative-geography/index.html,Thanet District Council,17/05/2013,N/A,274.22,REDACTED PERSONAL DATA,N/A,Director of Operational Services,Revenue,Transport Related Expenditure
http://www.ons.gov.uk/ons/guide-method/geography/products/names--codes-and-look-ups/names-and-codes-listings/names-and-codes-for-administrative-geography/index.html,Thanet District Council,17/05/2013,N/A,851.46,REDACTED PERSONAL DATA,N/A,East Kent Shared Services,Revenue,Transport Related Expenditure
http://www.ons.gov.uk/ons/guide-method/geography/products/names--codes-and-look-ups/names-and-codes-listings/names-and-codes-for-administrative-geography/index.html,Thanet District Council,17/05/2013,N/A,280.78,REDACTED PERSONAL DATA,N/A,Director of Operational Services,Revenue,Transport Related Expenditure
http://www.ons.gov.uk/ons/guide-method/geography/products/names--codes-and-look-ups/names-and-codes-listings/names-and-codes-for-administrative-geography/index.html,Thanet District Council,17/05/2013,N/A,339.40,REDACTED PERSONAL DATA,N/A,Director of Community Services,Revenue,Transport Related Expenditure
http://www.ons.gov.uk/ons/guide-method/geography/products/names--codes-and-look-ups/names-and-codes-listings/names-and-codes-for-administrative-geography/index.html,Thanet District Council,17/05/2013,N/A,273.22,REDACTED PERSONAL DATA,N/A,Director of Corporate Services and Transformation,Revenue,Transport Related Expenditure
http://www.ons.gov.uk/ons/guide-method/geography/products/names--codes-and-look-ups/names-and-codes-listings/names-and-codes-for-administrative-geography/index.html,Thanet District Council,17/05/2013,N/A,270.38,REDACTED PERSONAL DATA,N/A,Director of Community Services,Revenue,Transport Related Expenditure
http://www.ons.gov.uk/ons/guide-method/geography/products/names--codes-and-look-ups/names-and-codes-listings/names-and-codes-for-administrative-geography/index.html,Thanet District Council,17/05/2013,N/A,346.96,REDACTED PERSONAL DATA,N/A,Director of Corporate Services and Transformation,Revenue,Transport Related Expenditure
http://www.ons.gov.uk/ons/guide-method/geography/products/names--codes-and-look-ups/names-and-codes-listings/names-and-codes-for-administrative-geography/index.html,Thanet District Council,17/05/2013,N/A,367.76,REDACTED PERSONAL DATA,N/A,Director of Operational Services,Revenue,Transport Related Expenditure
http://www.ons.gov.uk/ons/guide-method/geography/products/names--codes-and-look-ups/names-and-codes-listings/names-and-codes-for-administrative-geography/index.html,Thanet District Council,17/05/2013,N/A,440.56,REDACTED PERSONAL DATA,N/A,Director of Corporate Services and Transformation,Revenue,Transport Related Expenditure
http://www.ons.gov.uk/ons/guide-method/geography/products/names--codes-and-look-ups/names-and-codes-listings/names-and-codes-for-administrative-geography/index.html,Thanet District Council,17/05/2013,N/A,372.49,REDACTED PERSONAL DATA,N/A,Director of Corporate Services and Transformation,Revenue,Transport Related Expenditure
http://www.ons.gov.uk/ons/guide-method/geography/products/names--codes-and-look-ups/names-and-codes-listings/names-and-codes-for-administrative-geography/index.html,Thanet District Council,17/05/2013,N/A,9.00,REDACTED PERSONAL DATA,N/A,Chief Executive and S151,Revenue,Transport Related Expenditure
http://www.ons.gov.uk/ons/guide-method/geography/products/names--codes-and-look-ups/names-and-codes-listings/names-and-codes-for-administrative-geography/index.html,Thanet District Council,17/05/2013,N/A,300.00,REDACTED PERSONAL DATA,N/A,Chief Executive and S151,Revenue,Supplies And Services
http://www.ons.gov.uk/ons/guide-method/geography/products/names--codes-and-look-ups/names-and-codes-listings/names-and-codes-for-administrative-geography/index.html,Thanet District Council,17/05/2013,N/A,430.10,REDACTED PERSONAL DATA,N/A,Director of Operational Services,Revenue,Transport Related Expenditure
http://www.ons.gov.uk/ons/guide-method/geography/products/names--codes-and-look-ups/names-and-codes-listings/names-and-codes-for-administrative-geography/index.html,Thanet District Council,17/05/2013,N/A,290.24,REDACTED PERSONAL DATA,N/A,Director of Operational Services,Revenue,Transport Related Expenditure
http://www.ons.gov.uk/ons/guide-method/geography/products/names--codes-and-look-ups/names-and-codes-listings/names-and-codes-for-administrative-geography/index.html,Thanet District Council,17/05/2013,N/A,1152.88,REDACTED PERSONAL DATA,N/A,Director of Community Services,Revenue,Transport Related Expenditure
http://www.ons.gov.uk/ons/guide-method/geography/products/names--codes-and-look-ups/names-and-codes-listings/names-and-codes-for-administrative-geography/index.html,Thanet District Council,17/05/2013,N/A,257.15,REDACTED PERSONAL DATA,N/A,Director of Corporate Services and Transformation,Revenue,Transport Related Expenditure
http://www.ons.gov.uk/ons/guide-method/geography/products/names--codes-and-look-ups/names-and-codes-listings/names-and-codes-for-administrative-geography/index.html,Thanet District Council,17/05/2013,N/A,571.02,REDACTED PERSONAL DATA,N/A,East Kent Shared Services,Revenue,Transport Related Expenditure
http://www.ons.gov.uk/ons/guide-method/geography/products/names--codes-and-look-ups/names-and-codes-listings/names-and-codes-for-administrative-geography/index.html,Thanet District Council,17/05/2013,N/A,393.29,REDACTED PERSONAL DATA,N/A,East Kent Shared Services,Revenue,Transport Related Expenditure
http://www.ons.gov.uk/ons/guide-method/geography/products/names--codes-and-look-ups/names-and-codes-listings/names-and-codes-for-administrative-geography/index.html,Thanet District Council,20/05/2013,338228,239268.00,Kent & Medway Towns Fire Authority,KMT001,Director of Corporate Services and Transformation,Balance Sheet,Reserves
http://www.ons.gov.uk/ons/guide-method/geography/products/names--codes-and-look-ups/names-and-codes-listings/names-and-codes-for-administrative-geography/index.html,Thanet District Council,20/05/2013,338226,3534463.00,Kent County Council,KCC022,Director of Corporate Services and Transformation,Balance Sheet,Reserves
http://www.ons.gov.uk/ons/guide-method/geography/products/names--codes-and-look-ups/names-and-codes-listings/names-and-codes-for-administrative-geography/index.html,Thanet District Council,20/05/2013,338229,447878.00,Kent Police Authority,KPA003,Director of Corporate Services and Transformation,Balance Sheet,Reserves
http://www.ons.gov.uk/ons/guide-method/geography/products/names--codes-and-look-ups/names-and-codes-listings/names-and-codes-for-administrative-geography/index.html,Thanet District Council,21/05/2013,338278,10000.00,A S Enterprises & Co Ltd,ASE002,Director of Community Services,Revenue,Supplies And Services
http://www.ons.gov.uk/ons/guide-method/geography/products/names--codes-and-look-ups/names-and-codes-listings/names-and-codes-for-administrative-geography/index.html,Thanet District Council,21/05/2013,337579,383.08,A W Warner & Sons Ltd,WAR006,Director of Operational Services,Revenue,Premises Related Expenditure
http://www.ons.gov.uk/ons/guide-method/geography/products/names--codes-and-look-ups/names-and-codes-listings/names-and-codes-for-administrative-geography/index.html,Thanet District Council,21/05/2013,338026,4850.00,Access Intelligence Media & Comm Ltd,ALL036,Director of Corporate Services and Transformation,Revenue,Supplies And Services
http://www.ons.gov.uk/ons/guide-method/geography/products/names--codes-and-look-ups/names-and-codes-listings/names-and-codes-for-administrative-geography/index.html,Thanet District Council,21/05/2013,338224,482.33,Adecco Uk Ltd,ADE005,Director of Corporate Services and Transformation,Revenue,Employees
http://www.ons.gov.uk/ons/guide-method/geography/products/names--codes-and-look-ups/names-and-codes-listings/names-and-codes-for-administrative-geography/index.html,Thanet District Council,21/05/2013,337757,267.94,Aebi Schmidt Uk Limited,AEB002,Director of Operational Services,Revenue,Transport Related Expenditure
http://www.ons.gov.uk/ons/guide-method/geography/products/names--codes-and-look-ups/names-and-codes-listings/names-and-codes-for-administrative-geography/index.html,Thanet District Council,21/05/2013,338193,301.56,Aebi Schmidt Uk Limited,AEB002,Director of Operational Services,Revenue,Transport Related Expenditure
http://www.ons.gov.uk/ons/guide-method/geography/products/names--codes-and-look-ups/names-and-codes-listings/names-and-codes-for-administrative-geography/index.html,Thanet District Council,21/05/2013,337128,473.00,All Access Ltd,ALL031,Director of Corporate Services and Transformation,Balance Sheet,Current Assets
http://www.ons.gov.uk/ons/guide-method/geography/products/names--codes-and-look-ups/names-and-codes-listings/names-and-codes-for-administrative-geography/index.html,Thanet District Council,21/05/2013,338192,368.48,Allstar Business Solutions Ltd,ALL038,Director of Operational Services,Revenue,Transport Related Expenditure
http://www.ons.gov.uk/ons/guide-method/geography/products/names--codes-and-look-ups/names-and-codes-listings/names-and-codes-for-administrative-geography/index.html,Thanet District Council,21/05/2013,337798,386.00,Ate (Uk) Limited,ANG014,Director of Operational Services,Revenue,Transport Related Expenditure
http://www.ons.gov.uk/ons/guide-method/geography/products/names--codes-and-look-ups/names-and-codes-listings/names-and-codes-for-administrative-geography/index.html,Thanet District Council,21/05/2013,337807,227.80,Aylesford Newsprint Ltd,AYL004,Director of Operational Services,Revenue,Supplies And Services
http://www.ons.gov.uk/ons/guide-method/geography/products/names--codes-and-look-ups/names-and-codes-listings/names-and-codes-for-administrative-geography/index.html,Thanet District Council,21/05/2013,337704,775.00,Bayly Environmental Services Ltd,BAY001,Director of Operational Services,Revenue,Premises Related Expenditure
http://www.ons.gov.uk/ons/guide-method/geography/products/names--codes-and-look-ups/names-and-codes-listings/names-and-codes-for-administrative-geography/index.html,Thanet District Council,21/05/2013,338207,4557.68,Better Beaches Ltd,BET009,Director of Operational Services,Revenue,Supplies And Services
http://www.ons.gov.uk/ons/guide-method/geography/products/names--codes-and-look-ups/names-and-codes-listings/names-and-codes-for-administrative-geography/index.html,Thanet District Council,21/05/2013,338219,256.35,Blackhurst Wade,BLA004,Director of Operational Services,Revenue,Transport Related Expenditure
http://www.ons.gov.uk/ons/guide-method/geography/products/names--codes-and-look-ups/names-and-codes-listings/names-and-codes-for-administrative-geography/index.html,Thanet District Council,21/05/2013,337295,245.40,Bowman Maintenance Contracting,BMC001,Director of Operational Services,Revenue,Supplies And Services
http://www.ons.gov.uk/ons/guide-method/geography/products/names--codes-and-look-ups/names-and-codes-listings/names-and-codes-for-administrative-geography/index.html,Thanet District Council,21/05/2013,338142,10265.00,Bramling Construction Ltd,BRA020,Director of Corporate Services and Transformation,Balance Sheet,Long Term Assets
http://www.ons.gov.uk/ons/guide-method/geography/products/names--codes-and-look-ups/names-and-codes-listings/names-and-codes-for-administrative-geography/index.html,Thanet District Council,21/05/2013,337791,1200.00,Bridge Security Cctv Ltd,BRI039,Director of Operational Services,Revenue,Supplies And Services
http://www.ons.gov.uk/ons/guide-method/geography/products/names--codes-and-look-ups/names-and-codes-listings/names-and-codes-for-administrative-geography/index.html,Thanet District Council,21/05/2013,337793,2045.02,Bridge Security Cctv Ltd,BRI039,Director of Operational Services,Revenue,Supplies And Services
http://www.ons.gov.uk/ons/guide-method/geography/products/names--codes-and-look-ups/names-and-codes-listings/names-and-codes-for-administrative-geography/index.html,Thanet District Council,21/05/2013,337794,347.70,Bridge Security Cctv Ltd,BRI039,Director of Operational Services,Revenue,Supplies And Services
http://www.ons.gov.uk/ons/guide-method/geography/products/names--codes-and-look-ups/names-and-codes-listings/names-and-codes-for-administrative-geography/index.html,Thanet District Council,21/05/2013,338297,10000.00,Broadstairs Town Team,BTO003,Director of Community Services,Revenue,Supplies And Services
http://www.ons.gov.uk/ons/guide-method/geography/products/names--codes-and-look-ups/names-and-codes-listings/names-and-codes-for-administrative-geography/index.html,Thanet District Council,21/05/2013,337611,1082.75,Bt Payment Services Ltd,BTE003,Director of Corporate Services and Transformation,Revenue,Supplies And Services
http://www.ons.gov.uk/ons/guide-method/geography/products/names--codes-and-look-ups/names-and-codes-listings/names-and-codes-for-administrative-geography/index.html,Thanet District Council,21/05/2013,337135,1835.00,Canterbury City Council,CAN004,Director of Operational Services,Revenue,Supplies And Services
http://www.ons.gov.uk/ons/guide-method/geography/products/names--codes-and-look-ups/names-and-codes-listings/names-and-codes-for-administrative-geography/index.html,Thanet District Council,21/05/2013,338025,230.00,Chatterbox Ltd,CHA006,East Kent Shared Services,Revenue,Supplies And Services
http://www.ons.gov.uk/ons/guide-method/geography/products/names--codes-and-look-ups/names-and-codes-listings/names-and-codes-for-administrative-geography/index.html,Thanet District Council,21/05/2013,337821,1500.00,Cieh,CIE001,Director of Community Services,Revenue,Supplies And Services
http://www.ons.gov.uk/ons/guide-method/geography/products/names--codes-and-look-ups/names-and-codes-listings/names-and-codes-for-administrative-geography/index.html,Thanet District Council,21/05/2013,337663,1562.21,Clear Picture Services Limited,CLE015,Director of Corporate Services and Transformation,Balance Sheet,Current Assets
http://www.ons.gov.uk/ons/guide-method/geography/products/names--codes-and-look-ups/names-and-codes-listings/names-and-codes-for-administrative-geography/index.html,Thanet District Council,21/05/2013,338052,1457.29,Clear Picture Services Limited,CLE015,Director of Corporate Services and Transformation,Balance Sheet,Current Assets
http://www.ons.gov.uk/ons/guide-method/geography/products/names--codes-and-look-ups/names-and-codes-listings/names-and-codes-for-administrative-geography/index.html,Thanet District Council,21/05/2013,337712,18264.25,Crown Estate Re Chesterton Humberts,CRO022,Director of Operational Services,Revenue,Premises Related Expenditure
http://www.ons.gov.uk/ons/guide-method/geography/products/names--codes-and-look-ups/names-and-codes-listings/names-and-codes-for-administrative-geography/index.html,Thanet District Council,21/05/2013,337713,23733.50,Crown Estate Re Chesterton Humberts,CRO022,Director of Operational Services,Revenue,Premises Related Expenditure
http://www.ons.gov.uk/ons/guide-method/geography/products/names--codes-and-look-ups/names-and-codes-listings/names-and-codes-for-administrative-geography/index.html,Thanet District Council,21/05/2013,337714,4435.75,Crown Estate Re Chesterton Humberts,CRO022,Director of Operational Services,Revenue,Premises Related Expenditure
http://www.ons.gov.uk/ons/guide-method/geography/products/names--codes-and-look-ups/names-and-codes-listings/names-and-codes-for-administrative-geography/index.html,Thanet District Council,21/05/2013,338143,14225.00,D L Clarke Builders Ltd,CLA031,Director of Corporate Services and Transformation,Balance Sheet,Long Term Assets
http://www.ons.gov.uk/ons/guide-method/geography/products/names--codes-and-look-ups/names-and-codes-listings/names-and-codes-for-administrative-geography/index.html,Thanet District Council,21/05/2013,338144,2780.00,D L Clarke Builders Ltd,CLA031,Director of Corporate Services and Transformation,Balance Sheet,Long Term Assets
http://www.ons.gov.uk/ons/guide-method/geography/products/names--codes-and-look-ups/names-and-codes-listings/names-and-codes-for-administrative-geography/index.html,Thanet District Council,21/05/2013,337802,430.00,Dg Consultancy Ltd,DGC002,Director of Corporate Services and Transformation,Revenue,Supplies And Services
http://www.ons.gov.uk/ons/guide-method/geography/products/names--codes-and-look-ups/names-and-codes-listings/names-and-codes-for-administrative-geography/index.html,Thanet District Council,21/05/2013,337286,1584.00,Disclosure And Barring Service,DIS017,Director of Corporate Services and Transformation,Revenue,Supplies And Services
http://www.ons.gov.uk/ons/guide-method/geography/products/names--codes-and-look-ups/names-and-codes-listings/names-and-codes-for-administrative-geography/index.html,Thanet District Council,21/05/2013,338138,10435.00,Dolphin Lifts Kent,DOL003,Director of Corporate Services and Transformation,Balance Sheet,Long Term Assets
http://www.ons.gov.uk/ons/guide-method/geography/products/names--codes-and-look-ups/names-and-codes-listings/names-and-codes-for-administrative-geography/index.html,Thanet District Council,21/05/2013,337298,773.25,Dover District Council,DOV001,Director of Corporate Services and Transformation,Revenue,Employees
http://www.ons.gov.uk/ons/guide-method/geography/products/names--codes-and-look-ups/names-and-codes-listings/names-and-codes-for-administrative-geography/index.html,Thanet District Council,21/05/2013,337745,360.00,Eagle Security Systems,EAG005,Director of Operational Services,Revenue,Premises Related Expenditure
http://www.ons.gov.uk/ons/guide-method/geography/products/names--codes-and-look-ups/names-and-codes-listings/names-and-codes-for-administrative-geography/index.html,Thanet District Council,21/05/2013,338199,972.28,Electoral Reform Services,ELE010,Director of Corporate Services and Transformation,Revenue,Supplies And Services
http://www.ons.gov.uk/ons/guide-method/geography/products/names--codes-and-look-ups/names-and-codes-listings/names-and-codes-for-administrative-geography/index.html,Thanet District Council,21/05/2013,338200,2510.63,Electoral Reform Services,ELE010,Director of Corporate Services and Transformation,Revenue,Supplies And Services
http://www.ons.gov.uk/ons/guide-method/geography/products/names--codes-and-look-ups/names-and-codes-listings/names-and-codes-for-administrative-geography/index.html,Thanet District Council,21/05/2013,337756,23270.00,Esri (Uk) Ltd,ESR001,East Kent Shared Services,Revenue,Supplies And Services
http://www.ons.gov.uk/ons/guide-method/geography/products/names--codes-and-look-ups/names-and-codes-listings/names-and-codes-for-administrative-geography/index.html,Thanet District Council,21/05/2013,337213,440.00,Eyeball Digital Signs,EYE002,Director of Operational Services,Revenue,Supplies And Services
http://www.ons.gov.uk/ons/guide-method/geography/products/names--codes-and-look-ups/names-and-codes-listings/names-and-codes-for-administrative-geography/index.html,Thanet District Council,21/05/2013,338139,262.06,Family Mosaic Housing,FAM001,Director of Corporate Services and Transformation,Balance Sheet,Long Term Assets
http://www.ons.gov.uk/ons/guide-method/geography/products/names--codes-and-look-ups/names-and-codes-listings/names-and-codes-for-administrative-geography/index.html,Thanet District Council,21/05/2013,338140,2173.84,Family Mosaic Housing,FAM001,Director of Corporate Services and Transformation,Balance Sheet,Long Term Assets
http://www.ons.gov.uk/ons/guide-method/geography/products/names--codes-and-look-ups/names-and-codes-listings/names-and-codes-for-administrative-geography/index.html,Thanet District Council,21/05/2013,338188,447.92,Family Mosaic Housing,FAM001,Director of Corporate Services and Transformation,Balance Sheet,Long Term Assets
http://www.ons.gov.uk/ons/guide-method/geography/products/names--codes-and-look-ups/names-and-codes-listings/names-and-codes-for-administrative-geography/index.html,Thanet District Council,21/05/2013,337205,290.00,Foster Plumbing,FOS001,Director of Operational Services,Revenue,Premises Related Expenditure
http://www.ons.gov.uk/ons/guide-method/geography/products/names--codes-and-look-ups/names-and-codes-listings/names-and-codes-for-administrative-geography/index.html,Thanet District Council,21/05/2013,337708,3370.00,Fuel Oils Kent,FUE001,Director of Operational Services,Revenue,Supplies And Services
http://www.ons.gov.uk/ons/guide-method/geography/products/names--codes-and-look-ups/names-and-codes-listings/names-and-codes-for-administrative-geography/index.html,Thanet District Council,21/05/2013,337684,540.33,Gb Sport & Leisure Uk Ltd,GBS002,Director of Operational Services,Revenue,Premises Related Expenditure
http://www.ons.gov.uk/ons/guide-method/geography/products/names--codes-and-look-ups/names-and-codes-listings/names-and-codes-for-administrative-geography/index.html,Thanet District Council,21/05/2013,337057,4250.00,Hem Des Llp,HEM007,Director of Corporate Services and Transformation,Balance Sheet,Long Term Assets
http://www.ons.gov.uk/ons/guide-method/geography/products/names--codes-and-look-ups/names-and-codes-listings/names-and-codes-for-administrative-geography/index.html,Thanet District Council,21/05/2013,338136,9963.56,Hfd Construction,HFD001,Director of Corporate Services and Transformation,Balance Sheet,Long Term Assets
http://www.ons.gov.uk/ons/guide-method/geography/products/names--codes-and-look-ups/names-and-codes-listings/names-and-codes-for-administrative-geography/index.html,Thanet District Council,21/05/2013,338040,4384.82,Hr Go Recruitment Ltd,HRG002,Director of Operational Services,Revenue,Employees
http://www.ons.gov.uk/ons/guide-method/geography/products/names--codes-and-look-ups/names-and-codes-listings/names-and-codes-for-administrative-geography/index.html,Thanet District Council,21/05/2013,337809,8319.10,Idox Software  Limited,IDO001,Director of Community Services,Revenue,Supplies And Services
http://www.ons.gov.uk/ons/guide-method/geography/products/names--codes-and-look-ups/names-and-codes-listings/names-and-codes-for-administrative-geography/index.html,Thanet District Council,21/05/2013,337805,225.68,Insight Direct (Uk) Ltd,INS013,East Kent Shared Services,Revenue,Supplies And Services
http://www.ons.gov.uk/ons/guide-method/geography/products/names--codes-and-look-ups/names-and-codes-listings/names-and-codes-for-administrative-geography/index.html,Thanet District Council,21/05/2013,338101,305.76,Insight Direct (Uk) Ltd,INS013,Director of Community Services,Revenue,Supplies And Services
http://www.ons.gov.uk/ons/guide-method/geography/products/names--codes-and-look-ups/names-and-codes-listings/names-and-codes-for-administrative-geography/index.html,Thanet District Council,21/05/2013,338104,649.48,Insight Direct (Uk) Ltd,INS013,Director of Corporate Services and Transformation,Revenue,Supplies And Services
http://www.ons.gov.uk/ons/guide-method/geography/products/names--codes-and-look-ups/names-and-codes-listings/names-and-codes-for-administrative-geography/index.html,Thanet District Council,21/05/2013,338099,310.00,Institute Of Cemetery & Crem Mang,INS015,Director of Operational Services,Revenue,Supplies And Services
http://www.ons.gov.uk/ons/guide-method/geography/products/names--codes-and-look-ups/names-and-codes-listings/names-and-codes-for-administrative-geography/index.html,Thanet District Council,21/05/2013,336892,179676.91,J Breheny Contractors Ltd,BRE002,Director of Corporate Services and Transformation,Balance Sheet,Long Term Assets
http://www.ons.gov.uk/ons/guide-method/geography/products/names--codes-and-look-ups/names-and-codes-listings/names-and-codes-for-administrative-geography/index.html,Thanet District Council,21/05/2013,338141,2944.20,John Gale,GAL001,Director of Corporate Services and Transformation,Balance Sheet,Long Term Assets
http://www.ons.gov.uk/ons/guide-method/geography/products/names--codes-and-look-ups/names-and-codes-listings/names-and-codes-for-administrative-geography/index.html,Thanet District Council,21/05/2013,338145,333.60,John Gale,GAL001,Director of Corporate Services and Transformation,Balance Sheet,Long Term Assets
http://www.ons.gov.uk/ons/guide-method/geography/products/names--codes-and-look-ups/names-and-codes-listings/names-and-codes-for-administrative-geography/index.html,Thanet District Council,21/05/2013,337326,1495.00,Keith Tait,TAI001,Director of Operational Services,Revenue,Premises Related Expenditure
http://www.ons.gov.uk/ons/guide-method/geography/products/names--codes-and-look-ups/names-and-codes-listings/names-and-codes-for-administrative-geography/index.html,Thanet District Council,21/05/2013,337282,1216.50,Kent County Council,KCC002,Director of Operational Services,Revenue,Premises Related Expenditure
http://www.ons.gov.uk/ons/guide-method/geography/products/names--codes-and-look-ups/names-and-codes-listings/names-and-codes-for-administrative-geography/index.html,Thanet District Council,21/05/2013,337233,2638.80,Kent County Council (Kcs),KCC003,Director of Operational Services,Revenue,Transport Related Expenditure
http://www.ons.gov.uk/ons/guide-method/geography/products/names--codes-and-look-ups/names-and-codes-listings/names-and-codes-for-administrative-geography/index.html,Thanet District Council,21/05/2013,338027,2427.76,Kent County Council (Kcs),KCC003,Director of Operational Services,Revenue,Premises Related Expenditure
http://www.ons.gov.uk/ons/guide-method/geography/products/names--codes-and-look-ups/names-and-codes-listings/names-and-codes-for-administrative-geography/index.html,Thanet District Council,21/05/2013,338056,1556.04,Kent County Council (Kcs),KCC003,Director of Operational Services,Revenue,Premises Related Expenditure
http://www.ons.gov.uk/ons/guide-method/geography/products/names--codes-and-look-ups/names-and-codes-listings/names-and-codes-for-administrative-geography/index.html,Thanet District Council,21/05/2013,338065,431.21,Kent County Council (Kcs),KCC003,Director of Operational Services,Revenue,Premises Related Expenditure
http://www.ons.gov.uk/ons/guide-method/geography/products/names--codes-and-look-ups/names-and-codes-listings/names-and-codes-for-administrative-geography/index.html,Thanet District Council,21/05/2013,338066,856.64,Kent County Council (Kcs),KCC003,Director of Operational Services,Revenue,Premises Related Expenditure
http://www.ons.gov.uk/ons/guide-method/geography/products/names--codes-and-look-ups/names-and-codes-listings/names-and-codes-for-administrative-geography/index.html,Thanet District Council,21/05/2013,338067,282.48,Kent County Council (Kcs),KCC003,Director of Operational Services,Revenue,Premises Related Expenditure
http://www.ons.gov.uk/ons/guide-method/geography/products/names--codes-and-look-ups/names-and-codes-listings/names-and-codes-for-administrative-geography/index.html,Thanet District Council,21/05/2013,338069,271.53,Kent County Council (Kcs),KCC003,Director of Operational Services,Revenue,Premises Related Expenditure
http://www.ons.gov.uk/ons/guide-method/geography/products/names--codes-and-look-ups/names-and-codes-listings/names-and-codes-for-administrative-geography/index.html,Thanet District Council,21/05/2013,338070,246.12,Kent County Council (Kcs),KCC003,Director of Operational Services,Revenue,Premises Related Expenditure
http://www.ons.gov.uk/ons/guide-method/geography/products/names--codes-and-look-ups/names-and-codes-listings/names-and-codes-for-administrative-geography/index.html,Thanet District Council,21/05/2013,338071,718.23,Kent County Council (Kcs),KCC003,Director of Operational Services,Revenue,Premises Related Expenditure
http://www.ons.gov.uk/ons/guide-method/geography/products/names--codes-and-look-ups/names-and-codes-listings/names-and-codes-for-administrative-geography/index.html,Thanet District Council,21/05/2013,338072,1413.40,Kent County Council (Kcs),KCC003,Director of Community Services,Revenue,Premises Related Expenditure
http://www.ons.gov.uk/ons/guide-method/geography/products/names--codes-and-look-ups/names-and-codes-listings/names-and-codes-for-administrative-geography/index.html,Thanet District Council,21/05/2013,338073,1398.98,Kent County Council (Kcs),KCC003,Director of Operational Services,Revenue,Premises Related Expenditure
http://www.ons.gov.uk/ons/guide-method/geography/products/names--codes-and-look-ups/names-and-codes-listings/names-and-codes-for-administrative-geography/index.html,Thanet District Council,21/05/2013,338014,431.95,L W Burt & Son Ltd,BUR027,Director of Operational Services,Revenue,Premises Related Expenditure
http://www.ons.gov.uk/ons/guide-method/geography/products/names--codes-and-look-ups/names-and-codes-listings/names-and-codes-for-administrative-geography/index.html,Thanet District Council,21/05/2013,338287,70.82,L W Burt & Son Ltd,BUR027,Director of Operational Services,Revenue,Premises Related Expenditure
http://www.ons.gov.uk/ons/guide-method/geography/products/names--codes-and-look-ups/names-and-codes-listings/names-and-codes-for-administrative-geography/index.html,Thanet District Council,21/05/2013,337737,2454.70,Level 3 Communications (Uk) Ltd,LEV005,Director of Corporate Services and Transformation,Balance Sheet,Current Assets
http://www.ons.gov.uk/ons/guide-method/geography/products/names--codes-and-look-ups/names-and-codes-listings/names-and-codes-for-administrative-geography/index.html,Thanet District Council,21/05/2013,337169,290.00,M D Electrics,MDE001,Director of Operational Services,Revenue,Premises Related Expenditure
http://www.ons.gov.uk/ons/guide-method/geography/products/names--codes-and-look-ups/names-and-codes-listings/names-and-codes-for-administrative-geography/index.html,Thanet District Council,21/05/2013,337656,380.00,M D Electrics,MDE001,Director of Operational Services,Revenue,Premises Related Expenditure
http://www.ons.gov.uk/ons/guide-method/geography/products/names--codes-and-look-ups/names-and-codes-listings/names-and-codes-for-administrative-geography/index.html,Thanet District Council,21/05/2013,337328,544.00,Maxwells Horticultural Supplies Ltd,MAX005,Director of Operational Services,Revenue,Supplies And Services
http://www.ons.gov.uk/ons/guide-method/geography/products/names--codes-and-look-ups/names-and-codes-listings/names-and-codes-for-administrative-geography/index.html,Thanet District Council,21/05/2013,337804,347.43,Med Clean South Ltd,MED015,Director of Operational Services,Revenue,Premises Related Expenditure
http://www.ons.gov.uk/ons/guide-method/geography/products/names--codes-and-look-ups/names-and-codes-listings/names-and-codes-for-administrative-geography/index.html,Thanet District Council,21/05/2013,337830,6233.86,Med Clean South Ltd,MED015,Director of Operational Services,Revenue,Premises Related Expenditure
http://www.ons.gov.uk/ons/guide-method/geography/products/names--codes-and-look-ups/names-and-codes-listings/names-and-codes-for-administrative-geography/index.html,Thanet District Council,21/05/2013,338181,1197.00,Michael Page Finance,PAG008,Director of Corporate Services and Transformation,Revenue,Employees
http://www.ons.gov.uk/ons/guide-method/geography/products/names--codes-and-look-ups/names-and-codes-listings/names-and-codes-for-administrative-geography/index.html,Thanet District Council,21/05/2013,337229,519.40,Mojo Site Services,MOJ001,Director of Operational Services,Revenue,Premises Related Expenditure
http://www.ons.gov.uk/ons/guide-method/geography/products/names--codes-and-look-ups/names-and-codes-listings/names-and-codes-for-administrative-geography/index.html,Thanet District Council,21/05/2013,337230,310.39,Mojo Site Services,MOJ001,Director of Operational Services,Revenue,Premises Related Expenditure
http://www.ons.gov.uk/ons/guide-method/geography/products/names--codes-and-look-ups/names-and-codes-listings/names-and-codes-for-administrative-geography/index.html,Thanet District Council,21/05/2013,337718,582.75,Morgan Jones Ltd,MOR001,Director of Corporate Services and Transformation,Revenue,Employees
http://www.ons.gov.uk/ons/guide-method/geography/products/names--codes-and-look-ups/names-and-codes-listings/names-and-codes-for-administrative-geography/index.html,Thanet District Council,21/05/2013,338114,464.63,Morgan Jones Ltd,MOR001,Director of Corporate Services and Transformation,Revenue,Employees
http://www.ons.gov.uk/ons/guide-method/geography/products/names--codes-and-look-ups/names-and-codes-listings/names-and-codes-for-administrative-geography/index.html,Thanet District Council,21/05/2013,338115,442.12,Morgan Jones Ltd,MOR001,East Kent Shared Services,Revenue,Employees
http://www.ons.gov.uk/ons/guide-method/geography/products/names--codes-and-look-ups/names-and-codes-listings/names-and-codes-for-administrative-geography/index.html,Thanet District Council,21/05/2013,337351,221.24,Nauticalia Limited,NAU001,Director of Community Services,Revenue,Supplies And Services
http://www.ons.gov.uk/ons/guide-method/geography/products/names--codes-and-look-ups/names-and-codes-listings/names-and-codes-for-administrative-geography/index.html,Thanet District Council,21/05/2013,337280,1000.00,Northgate Inf Solutions Uk Ltd,NOR018,East Kent Shared Services,Revenue,Supplies And Services
http://www.ons.gov.uk/ons/guide-method/geography/products/names--codes-and-look-ups/names-and-codes-listings/names-and-codes-for-administrative-geography/index.html,Thanet District Council,21/05/2013,338055,16779.96,Ocs Group Uk Ltd T/A Fountains,OCS005,Director of Operational Services,Revenue,Premises Related Expenditure
http://www.ons.gov.uk/ons/guide-method/geography/products/names--codes-and-look-ups/names-and-codes-listings/names-and-codes-for-administrative-geography/index.html,Thanet District Council,21/05/2013,338174,16779.96,Ocs Group Uk Ltd T/A Fountains,OCS005,Director of Operational Services,Revenue,Premises Related Expenditure
http://www.ons.gov.uk/ons/guide-method/geography/products/names--codes-and-look-ups/names-and-codes-listings/names-and-codes-for-administrative-geography/index.html,Thanet District Council,21/05/2013,338176,793.07,Ocs Group Uk Ltd T/A Fountains,OCS005,Director of Operational Services,Revenue,Premises Related Expenditure
http://www.ons.gov.uk/ons/guide-method/geography/products/names--codes-and-look-ups/names-and-codes-listings/names-and-codes-for-administrative-geography/index.html,Thanet District Council,21/05/2013,338177,566.13,Ocs Group Uk Ltd T/A Fountains,OCS005,Director of Operational Services,Revenue,Premises Related Expenditure
http://www.ons.gov.uk/ons/guide-method/geography/products/names--codes-and-look-ups/names-and-codes-listings/names-and-codes-for-administrative-geography/index.html,Thanet District Council,21/05/2013,337610,285.84,Orange Personal Communications Ltd,ORA002,Director of Corporate Services and Transformation,Revenue,Supplies And Services
http://www.ons.gov.uk/ons/guide-method/geography/products/names--codes-and-look-ups/names-and-codes-listings/names-and-codes-for-administrative-geography/index.html,Thanet District Council,21/05/2013,337546,270.00,P Lawrence & Son,LAW001,Director of Operational Services,Revenue,Premises Related Expenditure
http://www.ons.gov.uk/ons/guide-method/geography/products/names--codes-and-look-ups/names-and-codes-listings/names-and-codes-for-administrative-geography/index.html,Thanet District Council,21/05/2013,338137,1567.38,Precept Cs Ltd,PRE032,Director of Corporate Services and Transformation,Balance Sheet,Long Term Assets
http://www.ons.gov.uk/ons/guide-method/geography/products/names--codes-and-look-ups/names-and-codes-listings/names-and-codes-for-administrative-geography/index.html,Thanet District Council,21/05/2013,337767,381.62,Probrand Ltd,PRO012,East Kent Shared Services,Revenue,Supplies And Services
http://www.ons.gov.uk/ons/guide-method/geography/products/names--codes-and-look-ups/names-and-codes-listings/names-and-codes-for-administrative-geography/index.html,Thanet District Council,21/05/2013,337777,758.24,Probrand Ltd,PRO012,Director of Community Services,Revenue,Supplies And Services
http://www.ons.gov.uk/ons/guide-method/geography/products/names--codes-and-look-ups/names-and-codes-listings/names-and-codes-for-administrative-geography/index.html,Thanet District Council,21/05/2013,337778,313.25,Probrand Ltd,PRO012,East Kent Shared Services,Revenue,Supplies And Services
http://www.ons.gov.uk/ons/guide-method/geography/products/names--codes-and-look-ups/names-and-codes-listings/names-and-codes-for-administrative-geography/index.html,Thanet District Council,21/05/2013,338086,381.62,Probrand Ltd,PRO012,East Kent Shared Services,Revenue,Supplies And Services
http://www.ons.gov.uk/ons/guide-method/geography/products/names--codes-and-look-ups/names-and-codes-listings/names-and-codes-for-administrative-geography/index.html,Thanet District Council,21/05/2013,338087,381.62,Probrand Ltd,PRO012,East Kent Shared Services,Revenue,Supplies And Services
http://www.ons.gov.uk/ons/guide-method/geography/products/names--codes-and-look-ups/names-and-codes-listings/names-and-codes-for-administrative-geography/index.html,Thanet District Council,21/05/2013,337724,892.50,R Cannon,CAN007,Director of Operational Services,Revenue,Premises Related Expenditure
http://www.ons.gov.uk/ons/guide-method/geography/products/names--codes-and-look-ups/names-and-codes-listings/names-and-codes-for-administrative-geography/index.html,Thanet District Council,21/05/2013,337711,1310.00,Rackspace Limited,RAC006,East Kent Shared Services,Revenue,Supplies And Services
http://www.ons.gov.uk/ons/guide-method/geography/products/names--codes-and-look-ups/names-and-codes-listings/names-and-codes-for-administrative-geography/index.html,Thanet District Council,21/05/2013,337567,4337.69,Royal Mail,ROY004,Director of Corporate Services and Transformation,Revenue,Supplies And Services
http://www.ons.gov.uk/ons/guide-method/geography/products/names--codes-and-look-ups/names-and-codes-listings/names-and-codes-for-administrative-geography/index.html,Thanet District Council,21/05/2013,338013,2282.18,Royal Mail,ROY004,Director of Corporate Services and Transformation,Revenue,Supplies And Services
http://www.ons.gov.uk/ons/guide-method/geography/products/names--codes-and-look-ups/names-and-codes-listings/names-and-codes-for-administrative-geography/index.html,Thanet District Council,21/05/2013,337743,638.54,Santander Uk Plc,SAN019,East Kent Shared Services,Revenue,Supplies And Services
http://www.ons.gov.uk/ons/guide-method/geography/products/names--codes-and-look-ups/names-and-codes-listings/names-and-codes-for-administrative-geography/index.html,Thanet District Council,21/05/2013,337593,500.65,Southern Electric,SEL007,Director of Operational Services,Revenue,Premises Related Expenditure
http://www.ons.gov.uk/ons/guide-method/geography/products/names--codes-and-look-ups/names-and-codes-listings/names-and-codes-for-administrative-geography/index.html,Thanet District Council,21/05/2013,337596,252.11,Southern Electric,SEL007,Director of Operational Services,Revenue,Premises Related Expenditure
http://www.ons.gov.uk/ons/guide-method/geography/products/names--codes-and-look-ups/names-and-codes-listings/names-and-codes-for-administrative-geography/index.html,Thanet District Council,21/05/2013,337598,265.79,Southern Electric,SEL007,Director of Operational Services,Revenue,Premises Related Expenditure
http://www.ons.gov.uk/ons/guide-method/geography/products/names--codes-and-look-ups/names-and-codes-listings/names-and-codes-for-administrative-geography/index.html,Thanet District Council,21/05/2013,337606,298.74,Southern Electric,SEL007,Director of Community Services,Revenue,Premises Related Expenditure
http://www.ons.gov.uk/ons/guide-method/geography/products/names--codes-and-look-ups/names-and-codes-listings/names-and-codes-for-administrative-geography/index.html,Thanet District Council,21/05/2013,337990,2165.09,Southern Water,SWA001,Director of Operational Services,Revenue,Premises Related Expenditure
http://www.ons.gov.uk/ons/guide-method/geography/products/names--codes-and-look-ups/names-and-codes-listings/names-and-codes-for-administrative-geography/index.html,Thanet District Council,21/05/2013,338006,549.63,Southern Water,SWA001,Director of Operational Services,Revenue,Premises Related Expenditure
http://www.ons.gov.uk/ons/guide-method/geography/products/names--codes-and-look-ups/names-and-codes-listings/names-and-codes-for-administrative-geography/index.html,Thanet District Council,21/05/2013,338008,381.16,Southern Water,SWA001,Director of Operational Services,Revenue,Premises Related Expenditure
http://www.ons.gov.uk/ons/guide-method/geography/products/names--codes-and-look-ups/names-and-codes-listings/names-and-codes-for-administrative-geography/index.html,Thanet District Council,21/05/2013,338245,2726.00,Straight Plc,STR021,Director of Operational Services,Revenue,Supplies And Services
http://www.ons.gov.uk/ons/guide-method/geography/products/names--codes-and-look-ups/names-and-codes-listings/names-and-codes-for-administrative-geography/index.html,Thanet District Council,21/05/2013,338062,448.80,Supplies Team,SUP001,Director of Corporate Services and Transformation,Revenue,Supplies And Services
http://www.ons.gov.uk/ons/guide-method/geography/products/names--codes-and-look-ups/names-and-codes-listings/names-and-codes-for-administrative-geography/index.html,Thanet District Council,21/05/2013,338217,448.80,Supplies Team,SUP001,Director of Corporate Services and Transformation,Revenue,Supplies And Services
http://www.ons.gov.uk/ons/guide-method/geography/products/names--codes-and-look-ups/names-and-codes-listings/names-and-codes-for-administrative-geography/index.html,Thanet District Council,21/05/2013,337672,2619.00,Swale Heating Ltd,SWA006,Director of Corporate Services and Transformation,Balance Sheet,Current Assets
http://www.ons.gov.uk/ons/guide-method/geography/products/names--codes-and-look-ups/names-and-codes-listings/names-and-codes-for-administrative-geography/index.html,Thanet District Council,21/05/2013,337673,1539.00,Swale Heating Ltd,SWA006,Director of Corporate Services and Transformation,Balance Sheet,Current Assets
http://www.ons.gov.uk/ons/guide-method/geography/products/names--codes-and-look-ups/names-and-codes-listings/names-and-codes-for-administrative-geography/index.html,Thanet District Council,21/05/2013,337675,2684.00,Swale Heating Ltd,SWA006,Director of Corporate Services and Transformation,Balance Sheet,Current Assets
http://www.ons.gov.uk/ons/guide-method/geography/products/names--codes-and-look-ups/names-and-codes-listings/names-and-codes-for-administrative-geography/index.html,Thanet District Council,21/05/2013,337677,1539.00,Swale Heating Ltd,SWA006,Director of Corporate Services and Transformation,Balance Sheet,Current Assets
http://www.ons.gov.uk/ons/guide-method/geography/products/names--codes-and-look-ups/names-and-codes-listings/names-and-codes-for-administrative-geography/index.html,Thanet District Council,21/05/2013,337678,1774.00,Swale Heating Ltd,SWA006,Director of Corporate Services and Transformation,Balance Sheet,Current Assets
http://www.ons.gov.uk/ons/guide-method/geography/products/names--codes-and-look-ups/names-and-codes-listings/names-and-codes-for-administrative-geography/index.html,Thanet District Council,21/05/2013,337679,1545.00,Swale Heating Ltd,SWA006,Director of Corporate Services and Transformation,Balance Sheet,Current Assets
http://www.ons.gov.uk/ons/guide-method/geography/products/names--codes-and-look-ups/names-and-codes-listings/names-and-codes-for-administrative-geography/index.html,Thanet District Council,21/05/2013,337680,1545.00,Swale Heating Ltd,SWA006,Director of Corporate Services and Transformation,Balance Sheet,Current Assets
http://www.ons.gov.uk/ons/guide-method/geography/products/names--codes-and-look-ups/names-and-codes-listings/names-and-codes-for-administrative-geography/index.html,Thanet District Council,21/05/2013,337685,24618.46,Swale Heating Ltd,SWA006,Director of Corporate Services and Transformation,Balance Sheet,Current Assets
http://www.ons.gov.uk/ons/guide-method/geography/products/names--codes-and-look-ups/names-and-codes-listings/names-and-codes-for-administrative-geography/index.html,Thanet District Council,21/05/2013,337661,10000.00,Thanet Dist Citizens Advice Bureau,TDC003,Director of Community Services,Revenue,Supplies And Services
http://www.ons.gov.uk/ons/guide-method/geography/products/names--codes-and-look-ups/names-and-codes-listings/names-and-codes-for-administrative-geography/index.html,Thanet District Council,21/05/2013,337569,2366.67,The Glenwood Hotel,GLE007,Director of Community Services,Revenue,Supplies And Services
http://www.ons.gov.uk/ons/guide-method/geography/products/names--codes-and-look-ups/names-and-codes-listings/names-and-codes-for-administrative-geography/index.html,Thanet District Council,21/05/2013,337751,438.17,Veolia Es (Uk) Ltd,VEO001,Director of Operational Services,Revenue,Premises Related Expenditure
http://www.ons.gov.uk/ons/guide-method/geography/products/names--codes-and-look-ups/names-and-codes-listings/names-and-codes-for-administrative-geography/index.html,Thanet District Council,21/05/2013,337753,134.96,Veolia Es (Uk) Ltd,VEO001,Director of Corporate Services and Transformation,Balance Sheet,Current Assets
http://www.ons.gov.uk/ons/guide-method/geography/products/names--codes-and-look-ups/names-and-codes-listings/names-and-codes-for-administrative-geography/index.html,Thanet District Council,21/05/2013,337753,1803.28,Veolia Es (Uk) Ltd,VEO001,Director of Operational Services,Revenue,Premises Related Expenditure
http://www.ons.gov.uk/ons/guide-method/geography/products/names--codes-and-look-ups/names-and-codes-listings/names-and-codes-for-administrative-geography/index.html,Thanet District Council,21/05/2013,337555,283.40,Viridor Waste Management Ltd,VIR003,Director of Operational Services,Revenue,Third Party Payments
http://www.ons.gov.uk/ons/guide-method/geography/products/names--codes-and-look-ups/names-and-codes-listings/names-and-codes-for-administrative-geography/index.html,Thanet District Council,21/05/2013,337697,224.07,W G Burbridge,BUR016,Director of Operational Services,Revenue,Supplies And Services
http://www.ons.gov.uk/ons/guide-method/geography/products/names--codes-and-look-ups/names-and-codes-listings/names-and-codes-for-administrative-geography/index.html,Thanet District Council,21/05/2013,337369,4470.38,Waste Consulting Llp,WAS005,Director of Operational Services,Revenue,Supplies And Services
http://www.ons.gov.uk/ons/guide-method/geography/products/names--codes-and-look-ups/names-and-codes-listings/names-and-codes-for-administrative-geography/index.html,Thanet District Council,21/05/2013,337716,3000.00,West Kent Housing Association,WES025,Director of Community Services,Revenue,Supplies And Services
http://www.ons.gov.uk/ons/guide-method/geography/products/names--codes-and-look-ups/names-and-codes-listings/names-and-codes-for-administrative-geography/index.html,Thanet District Council,21/05/2013,338235,300.00,Windmill Inn Public House,WIN014,Director of Corporate Services and Transformation,Revenue,Premises Related Expenditure
http://www.ons.gov.uk/ons/guide-method/geography/products/names--codes-and-look-ups/names-and-codes-listings/names-and-codes-for-administrative-geography/index.html,Thanet District Council,21/05/2013,338236,300.00,Windmill Inn Public House,WIN014,Director of Corporate Services and Transformation,Revenue,Premises Related Expenditure
http://www.ons.gov.uk/ons/guide-method/geography/products/names--codes-and-look-ups/names-and-codes-listings/names-and-codes-for-administrative-geography/index.html,Thanet District Council,21/05/2013,337801,2852.00,Xma Ltd,XMA001,East Kent Shared Services,Revenue,Supplies And Services
http://www.ons.gov.uk/ons/guide-method/geography/products/names--codes-and-look-ups/names-and-codes-listings/names-and-codes-for-administrative-geography/index.html,Thanet District Council,21/05/2013,336859,5000.00,Your Leisure Kent Limited,YOU016,Director of Operational Services,Revenue,Supplies And Services
http://www.ons.gov.uk/ons/guide-method/geography/products/names--codes-and-look-ups/names-and-codes-listings/names-and-codes-for-administrative-geography/index.html,Thanet District Council,21/05/2013,338246,2521.00,Your Leisure Kent Limited,YOU016,Director of Community Services,Revenue,Premises Related Expenditure
http://www.ons.gov.uk/ons/guide-method/geography/products/names--codes-and-look-ups/names-and-codes-listings/names-and-codes-for-administrative-geography/index.html,Thanet District Council,22/05/2013,337272,8330.00,Hootsuite Media Inc,HOO003,Director of Corporate Services and Transformation,Revenue,Supplies And Services
http://www.ons.gov.uk/ons/guide-method/geography/products/names--codes-and-look-ups/names-and-codes-listings/names-and-codes-for-administrative-geography/index.html,Thanet District Council,22/05/2013,338500,2156.96,Nat West Bank,NWE001,Director of Corporate Services and Transformation,Balance Sheet,Long Term Assets
http://www.ons.gov.uk/ons/guide-method/geography/products/names--codes-and-look-ups/names-and-codes-listings/names-and-codes-for-administrative-geography/index.html,Thanet District Council,22/05/2013,338509,262.68,Nat West Bank,NWE001,Director of Corporate Services and Transformation,Revenue,Supplies And Services
http://www.ons.gov.uk/ons/guide-method/geography/products/names--codes-and-look-ups/names-and-codes-listings/names-and-codes-for-administrative-geography/index.html,Thanet District Council,22/05/2013,338491,13200.49,Public Works Loan Board,PWL001,Director of Corporate Services and Transformation,Balance Sheet,Current Assets
http://www.ons.gov.uk/ons/guide-method/geography/products/names--codes-and-look-ups/names-and-codes-listings/names-and-codes-for-administrative-geography/index.html,Thanet District Council,22/05/2013,338495,797.66,Santander,SAN017,Director of Corporate Services and Transformation,Revenue,Supplies And Services
http://www.ons.gov.uk/ons/guide-method/geography/products/names--codes-and-look-ups/names-and-codes-listings/names-and-codes-for-administrative-geography/index.html,Thanet District Council,22/05/2013,338496,2646.00,Santander,SAN017,Director of Corporate Services and Transformation,Revenue,Supplies And Services
http://www.ons.gov.uk/ons/guide-method/geography/products/names--codes-and-look-ups/names-and-codes-listings/names-and-codes-for-administrative-geography/index.html,Thanet District Council,22/05/2013,338496,882.00,Santander,SAN017,Director of Community Services,Revenue,Supplies And Services
http://www.ons.gov.uk/ons/guide-method/geography/products/names--codes-and-look-ups/names-and-codes-listings/names-and-codes-for-administrative-geography/index.html,Thanet District Council,22/05/2013,338499,2325951.00,Secretary Of State,SEC003,Director of Corporate Services and Transformation,Balance Sheet,Current Liabilities
http://www.ons.gov.uk/ons/guide-method/geography/products/names--codes-and-look-ups/names-and-codes-listings/names-and-codes-for-administrative-geography/index.html,Thanet District Council,22/05/2013,338502,1996.48,Worldpay Ltd,WOR008,Director of Corporate Services and Transformation,Revenue,Supplies And Services
http://www.ons.gov.uk/ons/guide-method/geography/products/names--codes-and-look-ups/names-and-codes-listings/names-and-codes-for-administrative-geography/index.html,Thanet District Council,22/05/2013,338503,2065.58,Worldpay Ltd,WOR008,Director of Corporate Services and Transformation,Revenue,Supplies And Services
http://www.ons.gov.uk/ons/guide-method/geography/products/names--codes-and-look-ups/names-and-codes-listings/names-and-codes-for-administrative-geography/index.html,Thanet District Council,22/05/2013,338506,630.75,Worldpay Ltd,WOR008,Director of Corporate Services and Transformation,Revenue,Supplies And Services
http://www.ons.gov.uk/ons/guide-method/geography/products/names--codes-and-look-ups/names-and-codes-listings/names-and-codes-for-administrative-geography/index.html,Thanet District Council,24/05/2013,338601,55000.00,Foster Mackay Ltd,FOS006,Director of Corporate Services and Transformation,Balance Sheet,Long Term Assets
http://www.ons.gov.uk/ons/guide-method/geography/products/names--codes-and-look-ups/names-and-codes-listings/names-and-codes-for-administrative-geography/index.html,Thanet District Council,28/05/2013,PC3938,630.00,Centre for Strategy & Communication,N/A,East Kent Shared Services,Revenue,Supplies And Services
http://www.ons.gov.uk/ons/guide-method/geography/products/names--codes-and-look-ups/names-and-codes-listings/names-and-codes-for-administrative-geography/index.html,Thanet District Council,28/05/2013,PC3940,300.00,County Court Basilden,N/A,East Kent Shared Services,Revenue,Supplies And Services
http://www.ons.gov.uk/ons/guide-method/geography/products/names--codes-and-look-ups/names-and-codes-listings/names-and-codes-for-administrative-geography/index.html,Thanet District Council,28/05/2013,PC3941,450.00,County Court Thanet,N/A,East Kent Shared Services,Revenue,Supplies And Services
http://www.ons.gov.uk/ons/guide-method/geography/products/names--codes-and-look-ups/names-and-codes-listings/names-and-codes-for-administrative-geography/index.html,Thanet District Council,28/05/2013,PC3930,259.07,Dropbox,N/A,East Kent Shared Services,Revenue,Supplies And Services
http://www.ons.gov.uk/ons/guide-method/geography/products/names--codes-and-look-ups/names-and-codes-listings/names-and-codes-for-administrative-geography/index.html,Thanet District Council,28/05/2013,PC3939,501.57,Dropbox,N/A,East Kent Shared Services,Revenue,Supplies And Services
http://www.ons.gov.uk/ons/guide-method/geography/products/names--codes-and-look-ups/names-and-codes-listings/names-and-codes-for-administrative-geography/index.html,Thanet District Council,28/05/2013,PC3996,1202.50,DVLA,N/A,Director of Operational Services,Revenue,Transport Related Expenditure
http://www.ons.gov.uk/ons/guide-method/geography/products/names--codes-and-look-ups/names-and-codes-listings/names-and-codes-for-administrative-geography/index.html,Thanet District Council,28/05/2013,PC3922,696.00,H M Courts Service,N/A,East Kent Shared Services,Revenue,Supplies And Services
http://www.ons.gov.uk/ons/guide-method/geography/products/names--codes-and-look-ups/names-and-codes-listings/names-and-codes-for-administrative-geography/index.html,Thanet District Council,28/05/2013,PC4026,1941.00,Premier Inn,N/A,Director of Community Services,Revenue,Supplies And Services
http://www.ons.gov.uk/ons/guide-method/geography/products/names--codes-and-look-ups/names-and-codes-listings/names-and-codes-for-administrative-geography/index.html,Thanet District Council,28/05/2013,PC4043,499.80,Preservation Equipment,N/A,Director of Community Services,Revenue,Supplies And Services
http://www.ons.gov.uk/ons/guide-method/geography/products/names--codes-and-look-ups/names-and-codes-listings/names-and-codes-for-administrative-geography/index.html,Thanet District Council,28/05/2013,PC3937,259.00,Safety First Aid,N/A,Director of Operational Services,Revenue,Supplies And Services
http://www.ons.gov.uk/ons/guide-method/geography/products/names--codes-and-look-ups/names-and-codes-listings/names-and-codes-for-administrative-geography/index.html,Thanet District Council,28/05/2013,PC3984,398.00,Solace Ltd,N/A,Chief Executive and S151,Revenue,Supplies And Services
http://www.ons.gov.uk/ons/guide-method/geography/products/names--codes-and-look-ups/names-and-codes-listings/names-and-codes-for-administrative-geography/index.html,Thanet District Council,28/05/2013,PC3960,339.17,Thanet Blinds,N/A,Director of Community Services,Revenue,Supplies And Services
http://www.ons.gov.uk/ons/guide-method/geography/products/names--codes-and-look-ups/names-and-codes-listings/names-and-codes-for-administrative-geography/index.html,Thanet District Council,28/05/2013,PC3918/4041,1053.17,Travelodge,N/A,Director of Community Services,Revenue,Supplies And Services
http://www.ons.gov.uk/ons/guide-method/geography/products/names--codes-and-look-ups/names-and-codes-listings/names-and-codes-for-administrative-geography/index.html,Thanet District Council,28/05/2013,PC4040/4042,907.33,Travelodge,N/A,Director of Community Services,Revenue,Supplies And Services
http://www.ons.gov.uk/ons/guide-method/geography/products/names--codes-and-look-ups/names-and-codes-listings/names-and-codes-for-administrative-geography/index.html,Thanet District Council,28/05/2013,PC3898,146.00,Webtis,N/A,East Kent Shared Services,Revenue,Transport Related Expenditure
http://www.ons.gov.uk/ons/guide-method/geography/products/names--codes-and-look-ups/names-and-codes-listings/names-and-codes-for-administrative-geography/index.html,Thanet District Council,28/05/2013,PC3899,114.00,Webtis,N/A,Director of Corporate Services and Transformation,Revenue,Transport Related Expenditure
http://www.ons.gov.uk/ons/guide-method/geography/products/names--codes-and-look-ups/names-and-codes-listings/names-and-codes-for-administrative-geography/index.html,Thanet District Council,29/05/2013,338210,4760.00,Adelante Software Limited,ADE002,Director of Corporate Services and Transformation,Revenue,Supplies And Services
http://www.ons.gov.uk/ons/guide-method/geography/products/names--codes-and-look-ups/names-and-codes-listings/names-and-codes-for-administrative-geography/index.html,Thanet District Council,29/05/2013,338595,29.02,Allstar Business Solutions Ltd,ALL038,Director of Operational Services,Revenue,Premises Related Expenditure
http://www.ons.gov.uk/ons/guide-method/geography/products/names--codes-and-look-ups/names-and-codes-listings/names-and-codes-for-administrative-geography/index.html,Thanet District Council,29/05/2013,338595,430.32,Allstar Business Solutions Ltd,ALL038,Director of Operational Services,Revenue,Transport Related Expenditure
http://www.ons.gov.uk/ons/guide-method/geography/products/names--codes-and-look-ups/names-and-codes-listings/names-and-codes-for-administrative-geography/index.html,Thanet District Council,29/05/2013,338647,4557.68,Better Beaches Ltd,BET009,Director of Operational Services,Revenue,Supplies And Services
http://www.ons.gov.uk/ons/guide-method/geography/products/names--codes-and-look-ups/names-and-codes-listings/names-and-codes-for-administrative-geography/index.html,Thanet District Council,29/05/2013,338586,8143.30,Bramling Construction Ltd,BRA020,Director of Corporate Services and Transformation,Balance Sheet,Long Term Assets
http://www.ons.gov.uk/ons/guide-method/geography/products/names--codes-and-look-ups/names-and-codes-listings/names-and-codes-for-administrative-geography/index.html,Thanet District Council,29/05/2013,337758,13909.42,Canterbury City Council,CAN004,Director of Operational Services,Revenue,Supplies And Services
http://www.ons.gov.uk/ons/guide-method/geography/products/names--codes-and-look-ups/names-and-codes-listings/names-and-codes-for-administrative-geography/index.html,Thanet District Council,29/05/2013,337760,3559.55,Canterbury City Council,CAN004,Director of Corporate Services and Transformation,Balance Sheet,Long Term Assets
http://www.ons.gov.uk/ons/guide-method/geography/products/names--codes-and-look-ups/names-and-codes-listings/names-and-codes-for-administrative-geography/index.html,Thanet District Council,29/05/2013,337544,1236.15,Carol Peters,PET003,Director of Community Services,Revenue,Supplies And Services
http://www.ons.gov.uk/ons/guide-method/geography/products/names--codes-and-look-ups/names-and-codes-listings/names-and-codes-for-administrative-geography/index.html,Thanet District Council,29/05/2013,338570,230.00,Chatterbox Ltd,CHA006,East Kent Shared Services,Revenue,Supplies And Services
http://www.ons.gov.uk/ons/guide-method/geography/products/names--codes-and-look-ups/names-and-codes-listings/names-and-codes-for-administrative-geography/index.html,Thanet District Council,29/05/2013,338597,10500.00,Cliftonville Partnership,CLI019,Director of Community Services,Revenue,Supplies And Services
http://www.ons.gov.uk/ons/guide-method/geography/products/names--codes-and-look-ups/names-and-codes-listings/names-and-codes-for-administrative-geography/index.html,Thanet District Council,29/05/2013,338252,8966.34,Commercial Services Kent Ltd,COM049,Director of Operational Services,Revenue,Supplies And Services
http://www.ons.gov.uk/ons/guide-method/geography/products/names--codes-and-look-ups/names-and-codes-listings/names-and-codes-for-administrative-geography/index.html,Thanet District Council,29/05/2013,338689,3000.00,Cripps Harris Hall Llp,CRI008,Director of Community Services,Revenue,Supplies And Services
http://www.ons.gov.uk/ons/guide-method/geography/products/names--codes-and-look-ups/names-and-codes-listings/names-and-codes-for-administrative-geography/index.html,Thanet District Council,29/05/2013,338583,5034.00,D L Clarke Builders Ltd,CLA031,Director of Corporate Services and Transformation,Balance Sheet,Long Term Assets
http://www.ons.gov.uk/ons/guide-method/geography/products/names--codes-and-look-ups/names-and-codes-listings/names-and-codes-for-administrative-geography/index.html,Thanet District Council,29/05/2013,338584,5900.00,Dolphin Lifts Kent,DOL003,Director of Corporate Services and Transformation,Balance Sheet,Long Term Assets
http://www.ons.gov.uk/ons/guide-method/geography/products/names--codes-and-look-ups/names-and-codes-listings/names-and-codes-for-administrative-geography/index.html,Thanet District Council,29/05/2013,338223,840.00,Eagle Security Systems,EAG005,Director of Operational Services,Revenue,Premises Related Expenditure
http://www.ons.gov.uk/ons/guide-method/geography/products/names--codes-and-look-ups/names-and-codes-listings/names-and-codes-for-administrative-geography/index.html,Thanet District Council,29/05/2013,338225,850.00,Eagle Security Systems,EAG005,Director of Operational Services,Revenue,Premises Related Expenditure
http://www.ons.gov.uk/ons/guide-method/geography/products/names--codes-and-look-ups/names-and-codes-listings/names-and-codes-for-administrative-geography/index.html,Thanet District Council,29/05/2013,338736,285.33,Edf Energy 1 Ltd,SEE012,Director of Operational Services,Revenue,Premises Related Expenditure
http://www.ons.gov.uk/ons/guide-method/geography/products/names--codes-and-look-ups/names-and-codes-listings/names-and-codes-for-administrative-geography/index.html,Thanet District Council,29/05/2013,338022,286.50,Eyeball Digital Signs,EYE002,Director of Community Services,Revenue,Supplies And Services
http://www.ons.gov.uk/ons/guide-method/geography/products/names--codes-and-look-ups/names-and-codes-listings/names-and-codes-for-administrative-geography/index.html,Thanet District Council,29/05/2013,338585,1550.40,Family Mosaic Housing,FAM001,Director of Corporate Services and Transformation,Balance Sheet,Long Term Assets
http://www.ons.gov.uk/ons/guide-method/geography/products/names--codes-and-look-ups/names-and-codes-listings/names-and-codes-for-administrative-geography/index.html,Thanet District Council,29/05/2013,338587,991.32,Family Mosaic Housing,FAM001,Director of Corporate Services and Transformation,Balance Sheet,Long Term Assets
http://www.ons.gov.uk/ons/guide-method/geography/products/names--codes-and-look-ups/names-and-codes-listings/names-and-codes-for-administrative-geography/index.html,Thanet District Council,29/05/2013,338024,708.50,Frandham Boarding Kennels,FRA010,Director of Corporate Services and Transformation,Revenue,Supplies And Services
http://www.ons.gov.uk/ons/guide-method/geography/products/names--codes-and-look-ups/names-and-codes-listings/names-and-codes-for-administrative-geography/index.html,Thanet District Council,29/05/2013,338221,500.00,Freeflow Limited,FRE010,Director of Operational Services,Revenue,Premises Related Expenditure
http://www.ons.gov.uk/ons/guide-method/geography/products/names--codes-and-look-ups/names-and-codes-listings/names-and-codes-for-administrative-geography/index.html,Thanet District Council,29/05/2013,338544,4937.11,Gb Sport & Leisure Uk Ltd,GBS002,Director of Operational Services,Revenue,Premises Related Expenditure
http://www.ons.gov.uk/ons/guide-method/geography/products/names--codes-and-look-ups/names-and-codes-listings/names-and-codes-for-administrative-geography/index.html,Thanet District Council,29/05/2013,338148,17075.00,Gerlack & Thorne Ltd,GER001,Director of Corporate Services and Transformation,Balance Sheet,Current Assets
http://www.ons.gov.uk/ons/guide-method/geography/products/names--codes-and-look-ups/names-and-codes-listings/names-and-codes-for-administrative-geography/index.html,Thanet District Council,29/05/2013,338149,15049.00,Gerlack & Thorne Ltd,GER001,Director of Corporate Services and Transformation,Balance Sheet,Current Assets
http://www.ons.gov.uk/ons/guide-method/geography/products/names--codes-and-look-ups/names-and-codes-listings/names-and-codes-for-administrative-geography/index.html,Thanet District Council,29/05/2013,338551,264.80,Greenham,GRE001,Director of Community Services,Revenue,Supplies And Services
http://www.ons.gov.uk/ons/guide-method/geography/products/names--codes-and-look-ups/names-and-codes-listings/names-and-codes-for-administrative-geography/index.html,Thanet District Council,29/05/2013,337289,7200.00,Guy Hollaway Architects Llp,HOL024,Director of Corporate Services and Transformation,Balance Sheet,Long Term Assets
http://www.ons.gov.uk/ons/guide-method/geography/products/names--codes-and-look-ups/names-and-codes-listings/names-and-codes-for-administrative-geography/index.html,Thanet District Council,29/05/2013,338298,520.84,Hartsdown Leisure Ltd,HAR044,Director of Community Services,Revenue,Premises Related Expenditure
http://www.ons.gov.uk/ons/guide-method/geography/products/names--codes-and-look-ups/names-and-codes-listings/names-and-codes-for-administrative-geography/index.html,Thanet District Council,29/05/2013,338011,1250.00,Hbhc Synergy Ltd,HBH001,Director of Corporate Services and Transformation,Revenue,Supplies And Services
http://www.ons.gov.uk/ons/guide-method/geography/products/names--codes-and-look-ups/names-and-codes-listings/names-and-codes-for-administrative-geography/index.html,Thanet District Council,29/05/2013,338646,768.80,Health & Safety Executive,HEA017,Director of Operational Services,Revenue,Supplies And Services
http://www.ons.gov.uk/ons/guide-method/geography/products/names--codes-and-look-ups/names-and-codes-listings/names-and-codes-for-administrative-geography/index.html,Thanet District Council,29/05/2013,338051,850.75,Hi Way Services Ltd,HIW002,Director of Operational Services,Revenue,Premises Related Expenditure
http://www.ons.gov.uk/ons/guide-method/geography/products/names--codes-and-look-ups/names-and-codes-listings/names-and-codes-for-administrative-geography/index.html,Thanet District Council,29/05/2013,338288,899.30,Hi Way Services Ltd,HIW002,Director of Operational Services,Revenue,Premises Related Expenditure
http://www.ons.gov.uk/ons/guide-method/geography/products/names--codes-and-look-ups/names-and-codes-listings/names-and-codes-for-administrative-geography/index.html,Thanet District Council,29/05/2013,337761,1916.26,Holbrook Revell Electrical Ltd,HOL015,Director of Operational Services,Revenue,Premises Related Expenditure
http://www.ons.gov.uk/ons/guide-method/geography/products/names--codes-and-look-ups/names-and-codes-listings/names-and-codes-for-administrative-geography/index.html,Thanet District Council,29/05/2013,338572,398.25,Hr Go Recruitment Ltd,HRG002,Director of Operational Services,Revenue,Employees
http://www.ons.gov.uk/ons/guide-method/geography/products/names--codes-and-look-ups/names-and-codes-listings/names-and-codes-for-administrative-geography/index.html,Thanet District Council,29/05/2013,338573,4749.78,Hr Go Recruitment Ltd,HRG002,Director of Operational Services,Revenue,Employees
http://www.ons.gov.uk/ons/guide-method/geography/products/names--codes-and-look-ups/names-and-codes-listings/names-and-codes-for-administrative-geography/index.html,Thanet District Council,29/05/2013,338574,4937.85,Hr Go Recruitment Ltd,HRG002,Director of Operational Services,Revenue,Employees
http://www.ons.gov.uk/ons/guide-method/geography/products/names--codes-and-look-ups/names-and-codes-listings/names-and-codes-for-administrative-geography/index.html,Thanet District Council,29/05/2013,338576,291.56,Hr Go Recruitment Ltd,HRG002,Director of Operational Services,Revenue,Employees
http://www.ons.gov.uk/ons/guide-method/geography/products/names--codes-and-look-ups/names-and-codes-listings/names-and-codes-for-administrative-geography/index.html,Thanet District Council,29/05/2013,338577,-333.06,Hr Go Recruitment Ltd,HRG002,Director of Operational Services,Revenue,Employees
http://www.ons.gov.uk/ons/guide-method/geography/products/names--codes-and-look-ups/names-and-codes-listings/names-and-codes-for-administrative-geography/index.html,Thanet District Council,29/05/2013,338578,372.81,Hr Go Recruitment Ltd,HRG002,Director of Operational Services,Revenue,Employees
http://www.ons.gov.uk/ons/guide-method/geography/products/names--codes-and-look-ups/names-and-codes-listings/names-and-codes-for-administrative-geography/index.html,Thanet District Council,29/05/2013,338580,882.60,John Gale,GAL001,Director of Corporate Services and Transformation,Balance Sheet,Long Term Assets
http://www.ons.gov.uk/ons/guide-method/geography/products/names--codes-and-look-ups/names-and-codes-listings/names-and-codes-for-administrative-geography/index.html,Thanet District Council,29/05/2013,338582,604.08,John Gale,GAL001,Director of Corporate Services and Transformation,Balance Sheet,Long Term Assets
http://www.ons.gov.uk/ons/guide-method/geography/products/names--codes-and-look-ups/names-and-codes-listings/names-and-codes-for-administrative-geography/index.html,Thanet District Council,29/05/2013,338264,222.11,Johnston Sweepers Ltd,JOH008,Director of Operational Services,Revenue,Transport Related Expenditure
http://www.ons.gov.uk/ons/guide-method/geography/products/names--codes-and-look-ups/names-and-codes-listings/names-and-codes-for-administrative-geography/index.html,Thanet District Council,29/05/2013,338292,885.82,Johnston Sweepers Ltd,JOH008,Director of Operational Services,Revenue,Transport Related Expenditure
http://www.ons.gov.uk/ons/guide-method/geography/products/names--codes-and-look-ups/names-and-codes-listings/names-and-codes-for-administrative-geography/index.html,Thanet District Council,29/05/2013,337766,10080.00,Kent County Council,KCC002,Director of Corporate Services and Transformation,Revenue,Supplies And Services
http://www.ons.gov.uk/ons/guide-method/geography/products/names--codes-and-look-ups/names-and-codes-listings/names-and-codes-for-administrative-geography/index.html,Thanet District Council,29/05/2013,338128,3000.00,Kent County Council,KCC002,Director of Operational Services,Revenue,Supplies And Services
http://www.ons.gov.uk/ons/guide-method/geography/products/names--codes-and-look-ups/names-and-codes-listings/names-and-codes-for-administrative-geography/index.html,Thanet District Council,29/05/2013,338463,3556.98,Kent County Council (Kcs),KCC003,Director of Corporate Services and Transformation,Revenue,Supplies And Services
http://www.ons.gov.uk/ons/guide-method/geography/products/names--codes-and-look-ups/names-and-codes-listings/names-and-codes-for-administrative-geography/index.html,Thanet District Council,29/05/2013,338463,197.61,Kent County Council (Kcs),KCC003,Director of Community Services,Revenue,Supplies And Services
http://www.ons.gov.uk/ons/guide-method/geography/products/names--codes-and-look-ups/names-and-codes-listings/names-and-codes-for-administrative-geography/index.html,Thanet District Council,29/05/2013,338463,988.05,Kent County Council (Kcs),KCC003,Director of Operational Services,Revenue,Supplies And Services
http://www.ons.gov.uk/ons/guide-method/geography/products/names--codes-and-look-ups/names-and-codes-listings/names-and-codes-for-administrative-geography/index.html,Thanet District Council,29/05/2013,338463,197.61,Kent County Council (Kcs),KCC003,East Kent Shared Services,Revenue,Supplies And Services
http://www.ons.gov.uk/ons/guide-method/geography/products/names--codes-and-look-ups/names-and-codes-listings/names-and-codes-for-administrative-geography/index.html,Thanet District Council,29/05/2013,338272,517.19,Loomis Uk Ltd,LOO002,Director of Operational Services,Revenue,Supplies And Services
http://www.ons.gov.uk/ons/guide-method/geography/products/names--codes-and-look-ups/names-and-codes-listings/names-and-codes-for-administrative-geography/index.html,Thanet District Council,29/05/2013,338735,15000.00,Margate Town Team,MTO001,Director of Community Services,Revenue,Supplies And Services
http://www.ons.gov.uk/ons/guide-method/geography/products/names--codes-and-look-ups/names-and-codes-listings/names-and-codes-for-administrative-geography/index.html,Thanet District Council,29/05/2013,337121,97968.55,Mears Ltd,MEA003,Director of Community Services,Revenue,Premises Related Expenditure
http://www.ons.gov.uk/ons/guide-method/geography/products/names--codes-and-look-ups/names-and-codes-listings/names-and-codes-for-administrative-geography/index.html,Thanet District Council,29/05/2013,337132,1634.00,Mears Ltd,MEA003,Director of Corporate Services and Transformation,Balance Sheet,Current Assets
http://www.ons.gov.uk/ons/guide-method/geography/products/names--codes-and-look-ups/names-and-codes-listings/names-and-codes-for-administrative-geography/index.html,Thanet District Council,29/05/2013,338154,57.57,Mears Ltd,MEA003,Director of Community Services,Revenue,Premises Related Expenditure
http://www.ons.gov.uk/ons/guide-method/geography/products/names--codes-and-look-ups/names-and-codes-listings/names-and-codes-for-administrative-geography/index.html,Thanet District Council,29/05/2013,338154,91.13,Mears Ltd,MEA003,Director of Corporate Services and Transformation,Balance Sheet,Current Assets
http://www.ons.gov.uk/ons/guide-method/geography/products/names--codes-and-look-ups/names-and-codes-listings/names-and-codes-for-administrative-geography/index.html,Thanet District Council,29/05/2013,338154,380.75,Mears Ltd,MEA003,Director of Corporate Services and Transformation,Balance Sheet,Long Term Assets
http://www.ons.gov.uk/ons/guide-method/geography/products/names--codes-and-look-ups/names-and-codes-listings/names-and-codes-for-administrative-geography/index.html,Thanet District Council,29/05/2013,338154,2461.91,Mears Ltd,MEA003,Director of Operational Services,Revenue,Premises Related Expenditure
http://www.ons.gov.uk/ons/guide-method/geography/products/names--codes-and-look-ups/names-and-codes-listings/names-and-codes-for-administrative-geography/index.html,Thanet District Council,29/05/2013,338155,136.57,Mears Ltd,MEA003,Director of Corporate Services and Transformation,Balance Sheet,Current Assets
http://www.ons.gov.uk/ons/guide-method/geography/products/names--codes-and-look-ups/names-and-codes-listings/names-and-codes-for-administrative-geography/index.html,Thanet District Council,29/05/2013,338155,1120.49,Mears Ltd,MEA003,Director of Operational Services,Revenue,Premises Related Expenditure
http://www.ons.gov.uk/ons/guide-method/geography/products/names--codes-and-look-ups/names-and-codes-listings/names-and-codes-for-administrative-geography/index.html,Thanet District Council,29/05/2013,338156,1900.82,Mears Ltd,MEA003,Director of Operational Services,Revenue,Premises Related Expenditure
http://www.ons.gov.uk/ons/guide-method/geography/products/names--codes-and-look-ups/names-and-codes-listings/names-and-codes-for-administrative-geography/index.html,Thanet District Council,29/05/2013,338157,1459.54,Mears Ltd,MEA003,Director of Operational Services,Revenue,Premises Related Expenditure
http://www.ons.gov.uk/ons/guide-method/geography/products/names--codes-and-look-ups/names-and-codes-listings/names-and-codes-for-administrative-geography/index.html,Thanet District Council,29/05/2013,338160,1936.96,Mears Ltd,MEA003,Director of Operational Services,Revenue,Premises Related Expenditure
http://www.ons.gov.uk/ons/guide-method/geography/products/names--codes-and-look-ups/names-and-codes-listings/names-and-codes-for-administrative-geography/index.html,Thanet District Council,29/05/2013,338161,231.70,Mears Ltd,MEA003,Director of Operational Services,Revenue,Premises Related Expenditure
http://www.ons.gov.uk/ons/guide-method/geography/products/names--codes-and-look-ups/names-and-codes-listings/names-and-codes-for-administrative-geography/index.html,Thanet District Council,29/05/2013,338253,233.08,Mears Ltd,MEA003,Director of Corporate Services and Transformation,Balance Sheet,Current Assets
http://www.ons.gov.uk/ons/guide-method/geography/products/names--codes-and-look-ups/names-and-codes-listings/names-and-codes-for-administrative-geography/index.html,Thanet District Council,29/05/2013,338568,582.75,Morgan Jones Ltd,MOR001,Director of Corporate Services and Transformation,Revenue,Employees
http://www.ons.gov.uk/ons/guide-method/geography/products/names--codes-and-look-ups/names-and-codes-listings/names-and-codes-for-administrative-geography/index.html,Thanet District Council,29/05/2013,338569,552.65,Morgan Jones Ltd,MOR001,East Kent Shared Services,Revenue,Employees
http://www.ons.gov.uk/ons/guide-method/geography/products/names--codes-and-look-ups/names-and-codes-listings/names-and-codes-for-administrative-geography/index.html,Thanet District Council,29/05/2013,338241,1526.00,Nec (Uk) Ltd,NEC003,Director of Corporate Services and Transformation,Revenue,Supplies And Services
http://www.ons.gov.uk/ons/guide-method/geography/products/names--codes-and-look-ups/names-and-codes-listings/names-and-codes-for-administrative-geography/index.html,Thanet District Council,29/05/2013,338254,950.00,Northgate Inf Solutions Uk Ltd,NOR018,East Kent Shared Services,Revenue,Supplies And Services
http://www.ons.gov.uk/ons/guide-method/geography/products/names--codes-and-look-ups/names-and-codes-listings/names-and-codes-for-administrative-geography/index.html,Thanet District Council,29/05/2013,338175,245.50,Ocs Group Uk Ltd T/A Fountains,OCS005,Director of Operational Services,Revenue,Premises Related Expenditure
http://www.ons.gov.uk/ons/guide-method/geography/products/names--codes-and-look-ups/names-and-codes-listings/names-and-codes-for-administrative-geography/index.html,Thanet District Council,29/05/2013,338277,820.00,P Lawrence & Son,LAW001,Director of Operational Services,Revenue,Premises Related Expenditure
http://www.ons.gov.uk/ons/guide-method/geography/products/names--codes-and-look-ups/names-and-codes-listings/names-and-codes-for-administrative-geography/index.html,Thanet District Council,29/05/2013,338230,832.14,Phoenix Software Ltd,PHO002,East Kent Shared Services,Revenue,Supplies And Services
http://www.ons.gov.uk/ons/guide-method/geography/products/names--codes-and-look-ups/names-and-codes-listings/names-and-codes-for-administrative-geography/index.html,Thanet District Council,29/05/2013,338265,372.62,Phoenix Software Ltd,PHO002,East Kent Shared Services,Revenue,Supplies And Services
http://www.ons.gov.uk/ons/guide-method/geography/products/names--codes-and-look-ups/names-and-codes-listings/names-and-codes-for-administrative-geography/index.html,Thanet District Council,29/05/2013,338209,3012.96,Probrand Ltd,PRO012,East Kent Shared Services,Revenue,Supplies And Services
http://www.ons.gov.uk/ons/guide-method/geography/products/names--codes-and-look-ups/names-and-codes-listings/names-and-codes-for-administrative-geography/index.html,Thanet District Council,29/05/2013,337240,71751.67,Provian Construction Ltd,PRO021,Director of Corporate Services and Transformation,Balance Sheet,Long Term Assets
http://www.ons.gov.uk/ons/guide-method/geography/products/names--codes-and-look-ups/names-and-codes-listings/names-and-codes-for-administrative-geography/index.html,Thanet District Council,29/05/2013,338594,525.00,Regency Properties,REG004,Director of Community Services,Revenue,Supplies And Services
http://www.ons.gov.uk/ons/guide-method/geography/products/names--codes-and-look-ups/names-and-codes-listings/names-and-codes-for-administrative-geography/index.html,Thanet District Council,29/05/2013,338146,5760.00,Rippleffect,RIP001,Director of Community Services,Revenue,Supplies And Services
http://www.ons.gov.uk/ons/guide-method/geography/products/names--codes-and-look-ups/names-and-codes-listings/names-and-codes-for-administrative-geography/index.html,Thanet District Council,29/05/2013,337270,1000.00,Rmb Consultants (Civil Eng) Ltd,RMB002,Director of Operational Services,Revenue,Supplies And Services
http://www.ons.gov.uk/ons/guide-method/geography/products/names--codes-and-look-ups/names-and-codes-listings/names-and-codes-for-administrative-geography/index.html,Thanet District Council,29/05/2013,338295,3759.32,Royal Mail,ROY004,Director of Corporate Services and Transformation,Revenue,Supplies And Services
http://www.ons.gov.uk/ons/guide-method/geography/products/names--codes-and-look-ups/names-and-codes-listings/names-and-codes-for-administrative-geography/index.html,Thanet District Council,29/05/2013,338273,593.07,Sba Ltd,SBA001,Director of Operational Services,Revenue,Supplies And Services
http://www.ons.gov.uk/ons/guide-method/geography/products/names--codes-and-look-ups/names-and-codes-listings/names-and-codes-for-administrative-geography/index.html,Thanet District Council,29/05/2013,338012,15399.00,Siemens Build Tech Sec Systems Ltd,SIE002,Director of Corporate Services and Transformation,Revenue,Supplies And Services
http://www.ons.gov.uk/ons/guide-method/geography/products/names--codes-and-look-ups/names-and-codes-listings/names-and-codes-for-administrative-geography/index.html,Thanet District Council,29/05/2013,338269,461.58,Signway Supplies,SIG013,Director of Operational Services,Revenue,Premises Related Expenditure
http://www.ons.gov.uk/ons/guide-method/geography/products/names--codes-and-look-ups/names-and-codes-listings/names-and-codes-for-administrative-geography/index.html,Thanet District Council,29/05/2013,338581,7355.00,South East Building Company Limited,SEB001,Director of Corporate Services and Transformation,Balance Sheet,Long Term Assets
http://www.ons.gov.uk/ons/guide-method/geography/products/names--codes-and-look-ups/names-and-codes-listings/names-and-codes-for-administrative-geography/index.html,Thanet District Council,29/05/2013,338133,1873.77,Southern Electric,SEL007,Director of Operational Services,Revenue,Premises Related Expenditure
http://www.ons.gov.uk/ons/guide-method/geography/products/names--codes-and-look-ups/names-and-codes-listings/names-and-codes-for-administrative-geography/index.html,Thanet District Council,29/05/2013,338487,363.80,Southern Electric,SEL007,Director of Operational Services,Revenue,Premises Related Expenditure
http://www.ons.gov.uk/ons/guide-method/geography/products/names--codes-and-look-ups/names-and-codes-listings/names-and-codes-for-administrative-geography/index.html,Thanet District Council,29/05/2013,338124,930.57,Southern Water,SWA001,Director of Operational Services,Revenue,Premises Related Expenditure
http://www.ons.gov.uk/ons/guide-method/geography/products/names--codes-and-look-ups/names-and-codes-listings/names-and-codes-for-administrative-geography/index.html,Thanet District Council,29/05/2013,338125,832.17,Southern Water,SWA001,Director of Operational Services,Revenue,Premises Related Expenditure
http://www.ons.gov.uk/ons/guide-method/geography/products/names--codes-and-look-ups/names-and-codes-listings/names-and-codes-for-administrative-geography/index.html,Thanet District Council,29/05/2013,338126,4488.18,Southern Water,SWA001,Director of Operational Services,Revenue,Premises Related Expenditure
http://www.ons.gov.uk/ons/guide-method/geography/products/names--codes-and-look-ups/names-and-codes-listings/names-and-codes-for-administrative-geography/index.html,Thanet District Council,29/05/2013,338267,407.19,Sparshatts Of Kent Ltd,SPA008,Director of Operational Services,Revenue,Transport Related Expenditure
http://www.ons.gov.uk/ons/guide-method/geography/products/names--codes-and-look-ups/names-and-codes-listings/names-and-codes-for-administrative-geography/index.html,Thanet District Council,29/05/2013,338289,280.00,Thanet Waste Services Ltd,TWA001,Director of Operational Services,Revenue,Premises Related Expenditure
http://www.ons.gov.uk/ons/guide-method/geography/products/names--codes-and-look-ups/names-and-codes-listings/names-and-codes-for-administrative-geography/index.html,Thanet District Council,29/05/2013,338545,501.20,The Bell Brush Company,BEL018,Director of Operational Services,Revenue,Supplies And Services
http://www.ons.gov.uk/ons/guide-method/geography/products/names--codes-and-look-ups/names-and-codes-listings/names-and-codes-for-administrative-geography/index.html,Thanet District Council,29/05/2013,338303,2345.83,The Glenwood Hotel,GLE007,Director of Community Services,Revenue,Supplies And Services
http://www.ons.gov.uk/ons/guide-method/geography/products/names--codes-and-look-ups/names-and-codes-listings/names-and-codes-for-administrative-geography/index.html,Thanet District Council,29/05/2013,338588,8261.00,Trueden Disability Care Ltd,TRU011,Director of Corporate Services and Transformation,Balance Sheet,Long Term Assets
http://www.ons.gov.uk/ons/guide-method/geography/products/names--codes-and-look-ups/names-and-codes-listings/names-and-codes-for-administrative-geography/index.html,Thanet District Council,29/05/2013,338589,1000.00,Turner Handel Traditional Toys,TUR024,Director of Community Services,Revenue,Supplies And Services
http://www.ons.gov.uk/ons/guide-method/geography/products/names--codes-and-look-ups/names-and-codes-listings/names-and-codes-for-administrative-geography/index.html,Thanet District Council,29/05/2013,338258,220.00,Unipart Group Ltd T/A Intertruck,INT019,Director of Operational Services,Revenue,Transport Related Expenditure
http://www.ons.gov.uk/ons/guide-method/geography/products/names--codes-and-look-ups/names-and-codes-listings/names-and-codes-for-administrative-geography/index.html,Thanet District Council,29/05/2013,338222,1500.00,Visit Kent Ltd,VIS005,Director of Community Services,Revenue,Supplies And Services
http://www.ons.gov.uk/ons/guide-method/geography/products/names--codes-and-look-ups/names-and-codes-listings/names-and-codes-for-administrative-geography/index.html,Thanet District Council,30/05/2013,338878,1382.33,Co-Operative Bank Paypoint,COO018,Director of Corporate Services and Transformation,Revenue,Supplies And Services
http://www.ons.gov.uk/ons/guide-method/geography/products/names--codes-and-look-ups/names-and-codes-listings/names-and-codes-for-administrative-geography/index.html,Thanet District Council,30/05/2013,338878,460.78,Co-Operative Bank Paypoint,COO018,Director of Community Services,Revenue,Supplies And Services

